{"text_format":"1","workbook":"xlsx","n_sheets":5,"sheets":["総括表・賃金総額","総括表・請負金額 ","Q料率_業種一括有期・建設","Q料率_業種率改定履歴","Q料率_拠出金"],"not_rendered":{"charts":0,"images":0,"macros":1,"external_links":0,"defined_names":5,"comments":0,"pivot_tables":0},"unopened":[],"bounds":{"document_bytes":16777216,"sheet_cells":100000,"rows_first":2000,"rows_last":500,"rows_between":2000,"halvings":0,"cell_chars":16384,"cell_head_chars":4096},"cells_cut":0,"cells_raw":0,"read":"whole","date_system":"1900"}

{"sheet":"総括表・賃金総額","index":0,"n_rows":136,"n_cols":180,"rows_kept":136,"cut":false,"hidden":false,"merged":[[48,161,49,175],[55,161,56,175],[44,161,46,172],[52,161,54,163],[52,165,54,167],[52,169,54,171],[70,160,71,173],[61,161,62,175],[64,161,65,175],[32,166,34,170],[36,160,37,175],[38,161,39,175],[28,124,29,159],[26,104,27,113],[104,2,105,31],[104,32,105,67],[104,76,105,103],[25,166,27,170],[26,171,27,173],[29,160,31,175],[72,160,75,178],[76,160,79,178],[80,160,83,178],[99,161,102,173],[99,174,102,175],[90,160,91,175],[92,160,93,175],[97,161,98,174],[84,160,87,178],[40,161,41,175],[0,170,0,171],[0,163,0,169],[2,95,7,121],[2,122,4,178],[5,122,7,178],[15,164,15,167],[15,168,15,175],[2,2,8,12],[5,13,6,75],[7,13,8,75],[2,13,4,16],[2,17,4,22],[9,2,11,12],[10,133,12,137],[10,82,12,86],[130,157,131,159],[130,106,131,115],[133,119,135,139],[126,106,127,115],[126,116,127,136],[126,137,127,139],[130,137,131,139],[117,161,119,163],[114,161,116,163],[124,160,125,170],[124,140,125,159],[120,164,122,166],[120,167,122,170],[0,2,1,18],[96,32,99,59],[96,60,99,67],[96,76,97,79],[98,76,99,79],[12,53,13,75],[12,13,13,52],[96,80,97,103],[112,45,113,48],[0,19,1,162],[2,76,5,94],[2,23,4,25],[2,26,4,33],[2,34,4,75],[38,10,45,27],[38,2,45,5],[86,10,93,27],[22,6,93,9],[86,2,93,5],[54,10,61,27],[54,2,61,5],[46,10,53,27],[46,2,53,5],[70,2,85,5],[120,171,120,172],[117,164,119,166],[117,167,119,170],[117,171,117,172],[118,171,119,172],[115,171,116,172],[120,150,120,160],[121,150,122,160],[121,45,122,48],[121,112,122,116],[120,161,122,163],[120,93,122,97],[120,124,122,149],[114,118,116,123],[117,118,119,123],[120,118,122,123],[120,98,122,102],[120,103,122,111],[114,112,114,116],[120,112,120,116],[118,112,119,116],[112,171,113,172],[111,171,111,172],[114,164,116,166],[114,167,116,170],[114,171,114,172],[109,164,110,166],[107,167,110,172],[107,161,108,166],[111,167,113,170],[111,164,113,166],[111,124,113,149],[112,112,113,116],[117,50,119,53],[111,45,111,48],[111,93,113,97],[111,161,113,163],[111,98,113,102],[114,124,116,149],[114,150,114,160],[115,150,116,160],[117,150,117,160],[118,150,119,160],[111,118,113,123],[111,0,113,1],[114,0,116,1],[117,0,119,1],[120,0,122,1],[120,30,122,33],[114,34,116,38],[117,34,119,38],[120,34,122,38],[111,2,113,20],[126,169,127,170],[126,160,127,168],[128,160,129,168],[128,169,129,170],[130,160,131,168],[130,169,131,170],[131,46,133,93],[117,124,119,149],[131,31,133,45],[117,98,119,102],[117,103,119,111],[131,95,133,100],[124,116,125,139],[133,170,135,172],[128,106,129,115],[128,116,129,136],[130,116,131,136],[128,137,129,139],[128,140,129,156],[128,157,129,159],[130,140,131,156],[133,140,135,168],[126,140,127,156],[126,157,127,159],[135,0,137,9],[114,2,116,20],[117,2,119,20],[120,2,122,20],[114,30,116,33],[117,30,119,33],[124,0,127,66],[129,2,130,6],[129,7,130,11],[129,12,130,15],[120,21,120,29],[135,10,137,54],[114,45,114,48],[114,50,116,53],[114,54,116,80],[129,16,130,19],[129,20,130,23],[129,24,130,27],[129,28,130,30],[0,0,21,1],[111,103,113,111],[111,112,111,116],[15,28,15,40],[15,41,15,75],[17,76,20,103],[107,30,108,38],[109,30,110,33],[109,34,110,38],[107,0,110,1],[50,76,51,103],[74,76,75,103],[78,76,79,103],[80,76,81,103],[107,93,108,102],[54,76,55,103],[56,76,57,103],[86,76,87,103],[76,76,77,103],[84,76,85,103],[107,2,110,20],[107,50,110,53],[109,93,110,97],[111,34,113,38],[30,2,37,5],[28,32,29,67],[28,68,29,75],[22,2,29,5],[22,32,23,67],[22,68,23,75],[24,68,25,75],[26,68,27,75],[121,171,122,172],[111,30,113,33],[107,21,110,29],[107,54,110,80],[111,54,113,80],[107,39,110,48],[111,39,113,44],[111,50,113,53],[114,93,116,97],[114,98,116,102],[114,103,116,111],[109,161,110,163],[111,150,111,160],[112,150,113,160],[109,98,110,102],[107,103,110,116],[22,10,29,27],[30,28,31,31],[17,32,20,67],[21,104,21,113],[17,68,18,75],[19,68,20,75],[21,32,21,67],[21,76,21,103],[21,68,21,75],[28,104,29,113],[21,28,21,31],[19,28,20,31],[17,28,18,31],[17,6,20,27],[30,10,37,27],[28,28,29,31],[28,76,29,103],[22,28,23,31],[24,28,25,31],[26,28,27,31],[22,76,23,103],[24,76,25,103],[26,76,27,103],[24,32,25,67],[62,2,69,5],[50,166,51,168],[50,170,51,172],[58,160,59,173],[58,32,59,67],[64,68,65,75],[66,68,67,75],[50,68,51,75],[58,68,59,75],[62,68,63,75],[50,162,51,164],[78,18,85,27],[70,18,77,27],[82,28,83,31],[70,10,85,17],[62,10,69,27],[32,28,33,31],[34,28,35,31],[38,28,39,31],[40,28,41,31],[36,28,37,31],[42,28,43,31],[56,28,57,31],[58,28,59,31],[86,28,87,31],[84,28,85,31],[88,28,89,31],[90,28,91,31],[26,32,27,67],[38,32,39,67],[40,32,41,67],[42,32,43,67],[46,32,47,67],[30,32,31,67],[50,28,51,31],[54,28,55,31],[74,28,75,31],[68,28,69,31],[78,28,79,31],[80,28,81,31],[76,28,77,31],[66,28,67,31],[70,28,71,31],[72,28,73,31],[52,28,53,31],[60,28,61,31],[62,28,63,31],[64,28,65,31],[70,32,71,67],[32,32,33,67],[34,32,35,67],[54,32,55,67],[56,32,57,67],[36,32,37,67],[60,32,61,67],[68,32,69,67],[62,32,63,67],[64,32,65,67],[76,32,77,67],[76,68,77,75],[90,68,91,75],[74,32,75,67],[78,32,79,67],[86,32,87,67],[88,32,89,67],[84,32,85,67],[84,68,85,75],[82,32,83,67],[82,68,83,75],[54,68,55,75],[56,68,57,75],[40,76,41,103],[30,68,31,75],[30,76,31,103],[32,68,33,75],[34,68,35,75],[38,68,39,75],[40,68,41,75],[42,68,43,75],[46,68,47,75],[48,68,49,75],[36,68,37,75],[58,76,59,103],[62,76,63,103],[64,76,65,103],[66,76,67,103],[70,76,71,103],[48,76,49,103],[36,104,37,113],[46,104,47,113],[44,104,45,113],[36,76,37,103],[42,76,43,103],[46,76,47,103],[38,76,39,103],[50,104,51,113],[50,114,51,123],[42,104,43,113],[52,104,53,113],[52,114,53,123],[42,114,43,123],[38,104,39,113],[32,76,33,103],[22,104,23,113],[22,114,23,123],[24,104,25,113],[24,114,25,123],[36,114,37,123],[26,114,27,123],[34,104,35,113],[34,114,35,123],[30,114,31,123],[32,104,33,113],[34,76,35,103],[28,114,29,123],[58,104,59,113],[60,104,61,113],[60,114,61,123],[58,114,59,123],[62,114,63,123],[64,114,65,123],[66,114,67,123],[56,104,57,113],[56,114,57,123],[96,124,97,159],[98,124,99,159],[76,114,77,123],[72,124,73,159],[90,104,91,113],[98,114,99,123],[32,124,33,159],[34,124,35,159],[38,124,39,159],[40,124,41,159],[36,124,37,159],[58,124,59,159],[54,124,55,159],[56,124,57,159],[52,124,53,159],[60,124,61,159],[48,124,49,159],[54,104,55,113],[54,114,55,123],[86,114,87,123],[88,104,89,113],[88,114,89,123],[74,104,75,113],[74,114,75,123],[104,68,105,75],[94,2,95,31],[94,68,95,75],[94,32,95,67],[96,2,99,31],[96,68,97,75],[100,2,103,31],[100,32,101,67],[102,32,103,67],[100,68,101,75],[102,68,103,75],[98,68,99,75],[12,2,13,12],[8,102,9,137],[17,124,20,159],[21,124,21,159],[9,13,11,75],[21,6,21,27],[21,114,21,123],[14,2,14,75],[8,153,12,172],[13,160,15,163],[10,115,12,121],[10,122,12,127],[19,2,20,5],[17,2,18,5],[21,2,21,5],[17,169,21,171],[17,172,21,175],[17,160,21,168],[10,102,12,107],[10,108,12,114],[13,164,14,172],[42,124,43,159],[6,77,7,94],[17,104,18,113],[19,104,20,113],[30,104,31,113],[8,77,9,86],[8,87,9,91],[8,92,9,101],[32,114,33,123],[38,114,39,123],[40,104,41,113],[40,114,41,123],[42,170,43,173],[22,160,24,175],[10,128,12,132],[90,124,91,159],[17,114,18,123],[19,114,20,123],[82,124,83,159],[66,124,67,159],[24,124,25,159],[13,94,14,159],[16,2,16,175],[15,2,15,27],[6,76,15,76],[26,124,27,159],[8,138,9,152],[10,148,12,152],[10,143,12,147],[10,138,12,142],[10,77,12,81],[10,87,12,91],[13,77,14,93],[15,77,15,93],[15,94,15,159],[22,124,23,159],[10,92,12,96],[10,97,12,101],[102,76,103,103],[98,104,99,113],[94,124,95,159],[94,114,95,123],[100,104,101,113],[104,104,105,113],[30,124,31,159],[80,124,81,159],[64,124,65,159],[94,104,95,113],[100,124,103,159],[96,114,97,123],[98,80,99,103],[96,104,97,113],[78,114,79,123],[76,104,77,113],[86,104,87,113],[84,124,85,159],[80,114,81,123],[82,104,83,113],[70,124,71,159],[102,104,103,113],[100,114,101,123],[102,114,103,123],[52,32,53,67],[52,68,53,75],[52,76,53,103],[50,124,51,159],[48,32,49,67],[50,32,51,67],[114,39,116,44],[117,112,117,116],[120,54,122,80],[120,81,120,92],[121,81,122,92],[117,54,119,80],[117,93,119,97],[118,45,119,48],[115,45,116,48],[115,112,116,116],[104,114,105,123],[104,124,105,159],[107,150,110,160],[107,118,110,123],[107,81,110,92],[107,124,110,149],[94,76,95,103],[100,76,101,103],[121,21,122,29],[111,81,111,92],[112,81,113,92],[114,81,114,92],[115,81,116,92],[117,81,117,92],[118,81,119,92],[117,39,119,44],[120,39,122,44],[120,50,122,53],[118,21,119,29],[112,21,113,29],[111,21,111,29],[115,21,116,29],[117,21,117,29],[114,21,114,29],[44,28,45,31],[46,124,47,159],[46,114,47,123],[48,104,49,113],[48,114,49,123],[46,28,47,31],[48,28,49,31],[44,32,45,67],[44,68,45,75],[44,76,45,103],[44,114,45,123],[44,124,45,159],[88,124,89,159],[90,114,91,123],[60,68,61,75],[60,76,61,103],[70,104,71,113],[70,68,71,75],[68,68,69,75],[66,32,67,67],[68,76,69,103],[64,104,65,113],[66,104,67,113],[62,104,63,113],[78,104,79,113],[70,114,71,123],[72,104,73,113],[72,114,73,123],[88,76,89,103],[90,76,91,103],[82,76,83,103],[90,32,91,67],[86,68,87,75],[88,68,89,75],[74,68,75,75],[78,68,79,75],[92,28,93,31],[92,32,93,67],[92,68,93,75],[92,76,93,103],[92,104,93,113],[92,114,93,123],[72,76,73,103],[68,124,69,159],[62,124,63,159],[82,114,83,123],[76,124,77,159],[68,114,69,123],[68,104,69,113],[74,124,75,159],[78,124,79,159],[80,104,81,113],[72,68,73,75],[72,32,73,67],[80,32,81,67],[80,68,81,75],[92,124,93,159],[86,124,87,159],[84,114,85,123],[84,104,85,113]]}
[null,null,"組機様式第8号",null,null,null,null,null,null,null,null,null,null,null,null,null,null,null,null,null,null,null,null,null,null,null,null,null,null,null,null,null,null,null,null,null,null,null,null,null,null,null,null,null,null,null,null,null,null,null,null,null,null,null,null,null,null,null,null,null,null,null,null,null,null,null,null,null,null,null,null,null,null,null,null,null,null,null,null,null,null,null,null,null,null,null,null,null,null,null,null,null,null,null,null,null,null,null,null,null,null,null,null,null,null,null,null,null,null,null,null,null,null,null,null,null,null,null,null,null,null,null,null,null,null,null,null,null,null,null,null,null,null,null,null,null,null,null,null,null,null,null,null,null,null,null,null,null,null,null,null,null,null,null,null,null,null,null,null,null,null,null,null,null,null,null,null,null,null,null,"頁"]
[]
[null,null,"住所",null,null,null,null,null,null,null,null,null,null,"〒",null,null,null,null,null,null,null,null,null,"-",null,null,null,null,null,null,null,null,null,null,null,null,null,null,null,null,null,null,null,null,null,null,null,null,null,null,null,null,null,null,null,null,null,null,null,null,null,null,null,null,null,null,null,null,null,null,null,null,null,null,null,null,-4161,null,null,null,null,null,null,null,null,null,null,null,null,null,null,null,null,null,null,"労働保険等",null,null,null,null,null,null,null,null,null,null,null,null,null,null,null,null,null,null,null,null,null,null,null,null,null,null,"一　括　有　期　事　業　総　括　表"]
[]
[]
[null,null,null,null,null,null,null,null,null,null,null,null,null,null,null,null,null,null,null,null,null,null,null,null,null,null,null,null,null,null,null,null,null,null,null,null,null,null,null,null,null,null,null,null,null,null,null,null,null,null,null,null,null,null,null,null,null,null,null,null,null,null,null,null,null,null,null,null,null,null,null,null,null,null,null,null,null,null,null,null,null,null,null,null,null,null,null,null,null,null,null,null,null,null,null,null,null,null,null,null,null,null,null,null,null,null,null,null,null,null,null,null,null,null,null,null,null,null,null,null,null,null,"算　定　基　礎　賃　金　等　の　報　告"]
[null,null,null,null,null,null,null,null,null,null,null,null,null,null,null,null,null,null,null,null,null,null,null,null,null,null,null,null,null,null,null,null,null,null,null,null,null,null,null,null,null,null,null,null,null,null,null,null,null,null,null,null,null,null,null,null,null,null,null,null,null,null,null,null,null,null,null,null,null,null,null,null,null,null,null,null,null,"労働保険番号"]
[]
[null,null,null,null,null,null,null,null,null,null,null,null,null,null,null,null,null,null,null,null,null,null,null,null,null,null,null,null,null,null,null,null,null,null,null,null,null,null,null,null,null,null,null,null,null,null,null,null,null,null,null,null,null,null,null,null,null,null,null,null,null,null,null,null,null,null,null,null,null,null,null,null,null,null,null,null,null,"府　県",null,null,null,null,null,null,null,null,null,"所掌",null,null,null,null,"管　轄",null,null,null,null,null,null,null,null,null,"基　幹　番　号",null,null,null,null,null,null,null,null,null,null,null,null,null,null,null,null,null,null,null,null,null,null,null,null,null,null,null,null,null,null,null,null,null,null,null,"枝　番"]
[null,null,"事業場名"]
[]
[]
[null,null,"事業主名",null,null,null,null,null,null,null,null,null,null,null,null,null,null,null,null,null,null,null,null,null,null,null,null,null,null,null,null,null,null,null,null,null,null,null,null,null,null,null,null,null,null,null,null,null,null,null,null,null,null,"殿"]
[null,null,null,null,null,null,null,null,null,null,null,null,null,null,null,null,null,null,null,null,null,null,null,null,null,null,null,null,null,null,null,null,null,null,null,null,null,null,null,null,null,null,null,null,null,null,null,null,null,null,null,null,null,null,null,null,null,null,null,null,null,null,null,null,null,null,null,null,null,null,null,null,null,null,null,null,null,"事務組合名"]
[]
[null,null,null,null,null,null,null,null,null,null,null,null,null,null,null,null,null,null,null,null,null,null,null,null,null,null,null,null,"事業場TEL",null,null,null,null,null,null,null,null,null,null,null,null,null,null,null,null,null,null,null,null,null,null,null,null,null,null,null,null,null,null,null,null,null,null,null,null,null,null,null,null,null,null,null,null,null,null,null,null,"TEL",null,null,null,null,null,null,null,null,null,null,null,null,null,null,null,null,null,null,null,null,null,null,null,null,null,null,null,null,null,null,null,null,null,null,null,null,null,null,null,null,null,null,null,null,null,null,null,null,null,null,null,null,null,null,null,null,null,null,null,null,null,null,null,null,null,null,null,null,null,null,null,null,null,null,null,null,null,null,null,null,null,null,null,null,null,null,0,null,null,null,0]
[]
[null,null,"業種",null,null,null,"事　業　の　種　類",null,null,null,null,null,null,null,null,null,null,null,null,null,null,null,null,null,null,null,null,null,"開始",null,null,null,"1.請　負　金　額",null,null,null,null,null,null,null,null,null,null,null,null,null,null,null,null,null,null,null,null,null,null,null,null,null,null,null,null,null,null,null,null,null,null,null,"労務",null,null,null,null,null,null,null,"２.賃　金　総　額",null,null,null,null,null,null,null,null,null,null,null,null,null,null,null,null,null,null,null,null,null,null,null,null,null,null,null,"労　災",null,null,null,null,null,null,null,null,null,"メリット",null,null,null,null,null,null,null,null,null,"保　険　料　等",null,null,null,null,null,null,null,null,null,null,null,null,null,null,null,null,null,null,null,null,null,null,null,null,null,null,null,null,null,null,null,null,null,null,null,"3.一括有期\n事業報告書",null,null,null,null,null,null,null,null,null,null,null,"枚添付"]
[]
[null,null,"番号",null,null,null,null,null,null,null,null,null,null,null,null,null,null,null,null,null,null,null,null,null,null,null,null,null,"時期",null,null,null,null,null,null,null,null,null,null,null,null,null,null,null,null,null,null,null,null,null,null,null,null,null,null,null,null,null,null,null,null,null,null,null,null,null,null,null,"費率",null,null,null,null,null,null,null,null,null,null,null,null,null,null,null,null,null,null,null,null,null,null,null,null,null,null,null,null,null,null,null,null,null,null,null,"保険率等",null,null,null,null,null,null,null,null,null,"料率"]
[]
[null,null,null,null,null,null,null,null,null,null,null,null,null,null,null,null,null,null,null,null,null,null,null,null,null,null,null,null,"*1",null,null,null,"円",null,null,null,null,null,null,null,null,null,null,null,null,null,null,null,null,null,null,null,null,null,null,null,null,null,null,null,null,null,null,null,null,null,null,null,null,null,null,null,null,null,null,null,"千円",null,null,null,null,null,null,null,null,null,null,null,null,null,null,null,null,null,null,null,null,null,null,null,null,null,null,null,null,null,null,null,null,null,null,null,null,null,null,null,null,null,null,null,null,null,null,null,"円"]
[{"$f":"C23","v":"31"},{"$f":"MATCH(C23,Q料率_業種一括有期・建設!B1:B10)","v":2},"31",null,null,null,"建　　設　　業",null,null,null,"水力発電施設\nずい道等新設事業",null,null,null,null,null,null,null,null,null,null,null,null,null,null,null,null,null,"①",null,null,null,null,null,null,null,null,null,null,null,null,null,null,null,null,null,null,null,null,null,null,null,null,null,null,null,null,null,null,null,null,null,null,null,null,null,null,null,{"$f":"IF(C23=\"\",\"\",INDIRECT(\"Q料率_業種一括有期・建設!$H$\"& B23,TRUE))","v":18},null,null,null,null,null,null,null,null,null,null,null,null,null,null,null,null,null,null,null,null,null,null,null,null,null,null,null,null,null,null,null,null,null,null,null,{"$f":"IF(C23=\"\",\"\",INDIRECT(\"Q料率_業種一括有期・建設!$D$\"&B23,TRUE))","v":89},null,null,null,null,null,null,null,null,null,null,null,null,null,null,null,null,null,null,null,{"$f":"ROUNDDOWN(IF(DK23=\"\",BY23*DA23,BY23*DK23),0)","v":0},null,null,null,null,null,null,null,null,null,null,null,null,null,null,null,null,null,null,null,null,null,null,null,null,null,null,null,null,null,null,null,null,null,null,null,"4.常時使用労働者数"]
[]
[null,null,null,null,null,null,null,null,null,null,null,null,null,null,null,null,null,null,null,null,null,null,null,null,null,null,null,null,"②",null,null,null,null,null,null,null,null,null,null,null,null,null,null,null,null,null,null,null,null,null,null,null,null,null,null,null,null,null,null,null,null,null,null,null,null,null,null,null,{"$f":"IF(C23=\"\",\"\",INDIRECT(\"Q料率_業種一括有期・建設!$I$\"& B23,TRUE))","v":18},null,null,null,null,null,null,null,null,null,null,null,null,null,null,null,null,null,null,null,null,null,null,null,null,null,null,null,null,null,null,null,null,null,null,null,{"$f":"IF(C23=\"\",\"\",INDIRECT(\"Q料率_業種一括有期・建設!$E$\"&B23,TRUE))","v":89},null,null,null,null,null,null,null,null,null,null,null,null,null,null,null,null,null,null,null,{"$f":"ROUNDDOWN(IF(DK25=\"\",BY25*DA25,BY25*DK25),0)","v":0}]
[]
[null,null,null,null,null,null,null,null,null,null,null,null,null,null,null,null,null,null,null,null,null,null,null,null,null,null,null,null,"③",null,null,null,null,null,null,null,null,null,null,null,null,null,null,null,null,null,null,null,null,null,null,null,null,null,null,null,null,null,null,null,null,null,null,null,null,null,null,null,{"$f":"IF(C23=\"\",\"\",INDIRECT(\"Q料率_業種一括有期・建設!$J$\"& B23,TRUE))","v":19},null,null,null,null,null,null,null,null,null,null,null,null,null,null,null,null,null,null,null,null,null,null,null,null,null,null,null,null,null,null,null,null,null,null,null,{"$f":"IF(C23=\"\",\"\",INDIRECT(\"Q料率_業種一括有期・建設!$F$\"&B23,TRUE))","v":79},null,null,null,null,null,null,null,null,null,null,null,null,null,null,null,null,null,null,null,{"$f":"ROUNDDOWN(IF(DK27=\"\",BY27*DA27,BY27*DK27),0)","v":0},null,null,null,null,null,null,null,null,null,null,null,null,null,null,null,null,null,null,null,null,null,null,null,null,null,null,null,null,null,null,null,null,null,null,null,null,null,null,null,null,null,null,null,null,null,null,"人"]
[]
[null,null,null,null,null,null,null,null,null,null,null,null,null,null,null,null,null,null,null,null,null,null,null,null,null,null,null,null,"④",null,null,null,null,null,null,null,null,null,null,null,null,null,null,null,null,null,null,null,null,null,null,null,null,null,null,null,null,null,null,null,null,null,null,null,null,null,null,null,{"$f":"IF(C23=\"\",\"\",INDIRECT(\"Q料率_業種一括有期・建設!$K$\"& B23,TRUE))","v":19},null,null,null,null,null,null,null,null,null,null,null,null,null,null,null,null,null,null,null,null,null,null,null,null,null,null,null,null,null,null,null,null,null,null,null,{"$f":"IF(C23=\"\",\"\",INDIRECT(\"Q料率_業種一括有期・建設!$G$\"&B23,TRUE))","v":62},null,null,null,null,null,null,null,null,null,null,null,null,null,null,null,null,null,null,null,{"$f":"ROUNDDOWN(IF(DK29=\"\",BY29*DA29,BY29*DK29),0)","v":0}]
[null,null,null,null,null,null,null,null,null,null,null,null,null,null,null,null,null,null,null,null,null,null,null,null,null,null,null,null,null,null,null,null,null,null,null,null,null,null,null,null,null,null,null,null,null,null,null,null,null,null,null,null,null,null,null,null,null,null,null,null,null,null,null,null,null,null,null,null,null,null,null,null,null,null,null,null,null,null,null,null,null,null,null,null,null,null,null,null,null,null,null,null,null,null,null,null,null,null,null,null,null,null,null,null,null,null,null,null,null,null,null,null,null,null,null,null,null,null,null,null,null,null,null,null,null,null,null,null,null,null,null,null,null,null,null,null,null,null,null,null,null,null,null,null,null,null,null,null,null,null,null,null,null,null,null,null,null,null,null,null,"5.事業の概要"]
[{"$f":"C31","v":"32"},{"$f":"MATCH(C31,Q料率_業種一括有期・建設!B1:B10)","v":3},"32",null,null,null,null,null,null,null,"道路新設事業",null,null,null,null,null,null,null,null,null,null,null,null,null,null,null,null,null,"①",null,null,null,null,null,null,null,null,null,null,null,null,null,null,null,null,null,null,null,null,null,null,null,null,null,null,null,null,null,null,null,null,null,null,null,null,null,null,null,{"$f":"IF(C31=\"\",\"\",INDIRECT(\"Q料率_業種一括有期・建設!$H$\"&B31,TRUE))","v":20},null,null,null,null,null,null,null,null,null,null,null,null,null,null,null,null,null,null,null,null,null,null,null,null,null,null,null,null,null,null,null,null,null,null,null,{"$f":"IF(C31=\"\",\"\",INDIRECT(\"Q料率_業種一括有期・建設!$D$\"&B31,TRUE))","v":16},null,null,null,null,null,null,null,null,null,null,null,null,null,null,null,null,null,null,null,{"$f":"ROUNDDOWN(IF(DK31=\"\",BY31*DA31,BY31*DK31),0)","v":0}]
[]
[null,null,null,null,null,null,null,null,null,null,null,null,null,null,null,null,null,null,null,null,null,null,null,null,null,null,null,null,"②",null,null,null,null,null,null,null,null,null,null,null,null,null,null,null,null,null,null,null,null,null,null,null,null,null,null,null,null,null,null,null,null,null,null,null,null,null,null,null,{"$f":"IF(C31=\"\",\"\",INDIRECT(\"Q料率_業種一括有期・建設!$J$\"&B31,TRUE))","v":20},null,null,null,null,null,null,null,null,null,null,null,null,null,null,null,null,null,null,null,null,null,null,null,null,null,null,null,null,null,null,null,null,null,null,null,{"$f":"IF(C31=\"\",\"\",INDIRECT(\"Q料率_業種一括有期・建設!$E$\"&B31,TRUE))","v":16},null,null,null,null,null,null,null,null,null,null,null,null,null,null,null,null,null,null,null,{"$f":"ROUNDDOWN(IF(DK33=\"\",BY33*DA33,BY33*DK33),0)","v":0}]
[]
[null,null,null,null,null,null,null,null,null,null,null,null,null,null,null,null,null,null,null,null,null,null,null,null,null,null,null,null,"③",null,null,null,null,null,null,null,null,null,null,null,null,null,null,null,null,null,null,null,null,null,null,null,null,null,null,null,null,null,null,null,null,null,null,null,null,null,null,null,{"$f":"IF(C31=\"\",\"\",INDIRECT(\"Q料率_業種一括有期・建設!$J$\"&B31,TRUE))","v":20},null,null,null,null,null,null,null,null,null,null,null,null,null,null,null,null,null,null,null,null,null,null,null,null,null,null,null,null,null,null,null,null,null,null,null,{"$f":"IF(C31=\"\",\"\",INDIRECT(\"Q料率_業種一括有期・建設!$F$\"&B31,TRUE))","v":11},null,null,null,null,null,null,null,null,null,null,null,null,null,null,null,null,null,null,null,{"$f":"ROUNDDOWN(IF(DK35=\"\",BY35*DA35,BY35*DK35),0)","v":0}]
[]
[null,null,null,null,null,null,null,null,null,null,null,null,null,null,null,null,null,null,null,null,null,null,null,null,null,null,null,null,"④",null,null,null,null,null,null,null,null,null,null,null,null,null,null,null,null,null,null,null,null,null,null,null,null,null,null,null,null,null,null,null,null,null,null,null,null,null,null,null,{"$f":"IF(C31=\"\",\"\",INDIRECT(\"Q料率_業種一括有期・建設!$K$\"&B31,TRUE))","v":19},null,null,null,null,null,null,null,null,null,null,null,null,null,null,null,null,null,null,null,null,null,null,null,null,null,null,null,null,null,null,null,null,null,null,null,{"$f":"IF(C31=\"\",\"\",INDIRECT(\"Q料率_業種一括有期・建設!$G$\"&B31,TRUE))","v":11},null,null,null,null,null,null,null,null,null,null,null,null,null,null,null,null,null,null,null,{"$f":"ROUNDDOWN(IF(DK37=\"\",BY37*DA37,BY37*DK37),0)","v":0},null,null,null,null,null,null,null,null,null,null,null,null,null,null,null,null,null,null,null,null,null,null,null,null,null,null,null,null,null,null,null,null,null,null,null,"6.新年度賃金見込額"]
[]
[{"$f":"C39","v":"33"},{"$f":"MATCH(C39,Q料率_業種一括有期・建設!B1:B10)","v":4},"33",null,null,null,null,null,null,null,"舗装工事業",null,null,null,null,null,null,null,null,null,null,null,null,null,null,null,null,null,"①",null,null,null,null,null,null,null,null,null,null,null,null,null,null,null,null,null,null,null,null,null,null,null,null,null,null,null,null,null,null,null,null,null,null,null,null,null,null,null,{"$f":"IF(C39=\"\",\"\",INDIRECT(\"Q料率_業種一括有期・建設!$H$\"&B39,TRUE))","v":18},null,null,null,null,null,null,null,null,null,null,null,null,null,null,null,null,null,null,null,null,null,null,null,null,null,null,null,null,null,null,null,null,null,null,null,{"$f":"IF(C39=\"\",\"\",INDIRECT(\"Q料率_業種一括有期・建設!$D$\"&B39,TRUE))","v":10},null,null,null,null,null,null,null,null,null,null,null,null,null,null,null,null,null,null,null,{"$f":"ROUNDDOWN(IF(DK39=\"\",BY39*DA39,BY39*DK39),0)","v":0},null,null,null,null,null,null,null,null,null,null,null,null,null,null,null,null,null,null,null,null,null,null,null,null,null,null,null,null,null,null,null,null,null,null,null,null,{"$f":"IF(FI16=1,\"①\",\"1\") &\".前年度と同額\"","v":"1.前年度と同額"}]
[]
[null,null,null,null,null,null,null,null,null,null,null,null,null,null,null,null,null,null,null,null,null,null,null,null,null,null,null,null,"②",null,null,null,null,null,null,null,null,null,null,null,null,null,null,null,null,null,null,null,null,null,null,null,null,null,null,null,null,null,null,null,null,null,null,null,null,null,null,null,{"$f":"IF(C39=\"\",\"\",INDIRECT(\"Q料率_業種一括有期・建設!$I$\"&B39,TRUE))","v":18},null,null,null,null,null,null,null,null,null,null,null,null,null,null,null,null,null,null,null,null,null,null,null,null,null,null,null,null,null,null,null,null,null,null,null,{"$f":"IF(C39=\"\",\"\",INDIRECT(\"Q料率_業種一括有期・建設!$E$\"&B39,TRUE))","v":10},null,null,null,null,null,null,null,null,null,null,null,null,null,null,null,null,null,null,null,{"$f":"ROUNDDOWN(IF(DK41=\"\",BY41*DA41,BY41*DK41),0)","v":0},null,null,null,null,null,null,null,null,null,null,null,null,null,null,null,null,null,null,null,null,null,null,null,null,null,null,null,null,null,null,null,null,null,null,null,null,{"$f":"IF(FI16=2,\"②\",\"2\") &\".前年度と変わる\"","v":"2.前年度と変わる"}]
[]
[null,null,null,null,null,null,null,null,null,null,null,null,null,null,null,null,null,null,null,null,null,null,null,null,null,null,null,null,"③",null,null,null,null,null,null,null,null,null,null,null,null,null,null,null,null,null,null,null,null,null,null,null,null,null,null,null,null,null,null,null,null,null,null,null,null,null,null,null,{"$f":"IF(C39=\"\",\"\",INDIRECT(\"Q料率_業種一括有期・建設!$J$\"&B39,TRUE))","v":18},null,null,null,null,null,null,null,null,null,null,null,null,null,null,null,null,null,null,null,null,null,null,null,null,null,null,null,null,null,null,null,null,null,null,null,{"$f":"IF(C39=\"\",\"\",INDIRECT(\"Q料率_業種一括有期・建設!$F$\"&B39,TRUE))","v":9},null,null,null,null,null,null,null,null,null,null,null,null,null,null,null,null,null,null,null,{"$f":"ROUNDDOWN(IF(DK43=\"\",BY43*DA43,BY43*DK43),0)","v":0},null,null,null,null,null,null,null,null,null,null,null,null,null,null,null,null,null,null,null,null,null,null,null,null,null,null,null,null,null,null,null,null,null,null,null,null,null,null,null,null,null,null,null,null,null,"千円"]
[]
[null,null,null,null,null,null,null,null,null,null,null,null,null,null,null,null,null,null,null,null,null,null,null,null,null,null,null,null,"④",null,null,null,null,null,null,null,null,null,null,null,null,null,null,null,null,null,null,null,null,null,null,null,null,null,null,null,null,null,null,null,null,null,null,null,null,null,null,null,{"$f":"IF(C39=\"\",\"\",INDIRECT(\"Q料率_業種一括有期・建設!$K$\"&B39,TRUE))","v":17},null,null,null,null,null,null,null,null,null,null,null,null,null,null,null,null,null,null,null,null,null,null,null,null,null,null,null,null,null,null,null,null,null,null,null,{"$f":"IF(C39=\"\",\"\",INDIRECT(\"Q料率_業種一括有期・建設!$G$\"&B39,TRUE))","v":9},null,null,null,null,null,null,null,null,null,null,null,null,null,null,null,null,null,null,null,{"$f":"ROUNDDOWN(IF(DK45=\"\",BY45*DA45,BY45*DK45),0)","v":0}]
[]
[{"$f":"C47","v":"34"},{"$f":"MATCH(C47,Q料率_業種一括有期・建設!B1:B10)","v":5},"34",null,null,null,null,null,null,null,"鉄道又は軌道\n新設事業",null,null,null,null,null,null,null,null,null,null,null,null,null,null,null,null,null,"①",null,null,null,null,null,null,null,null,null,null,null,null,null,null,null,null,null,null,null,null,null,null,null,null,null,null,null,null,null,null,null,null,null,null,null,null,null,null,null,{"$f":"IF(C47=\"\",\"\",INDIRECT(\"Q料率_業種一括有期・建設!$H$\"&B47,TRUE))","v":23},null,null,null,null,null,null,null,null,null,null,null,null,null,null,null,null,null,null,null,null,null,null,null,null,null,null,null,null,null,null,null,null,null,null,null,{"$f":"IF(C47=\"\",\"\",INDIRECT(\"Q料率_業種一括有期・建設!$D$\"&B47,TRUE))","v":17},null,null,null,null,null,null,null,null,null,null,null,null,null,null,null,null,null,null,null,{"$f":"ROUNDDOWN(IF(DK47=\"\",BY47*DA47,BY47*DK47),0)","v":0}]
[]
[null,null,null,null,null,null,null,null,null,null,null,null,null,null,null,null,null,null,null,null,null,null,null,null,null,null,null,null,"②",null,null,null,null,null,null,null,null,null,null,null,null,null,null,null,null,null,null,null,null,null,null,null,null,null,null,null,null,null,null,null,null,null,null,null,null,null,null,null,{"$f":"IF(C47=\"\",\"\",INDIRECT(\"Q料率_業種一括有期・建設!$I$\"&B47,TRUE))","v":23},null,null,null,null,null,null,null,null,null,null,null,null,null,null,null,null,null,null,null,null,null,null,null,null,null,null,null,null,null,null,null,null,null,null,null,{"$f":"IF(C47=\"\",\"\",INDIRECT(\"Q料率_業種一括有期・建設!$E$\"&B47,TRUE))","v":17},null,null,null,null,null,null,null,null,null,null,null,null,null,null,null,null,null,null,null,{"$f":"ROUNDDOWN(IF(DK49=\"\",BY49*DA49,BY49*DK49),0)","v":0},null,null,null,null,null,null,null,null,null,null,null,null,null,null,null,null,null,null,null,null,null,null,null,null,null,null,null,null,null,null,null,null,null,null,null,null,{"$f":"IF(FI16=3,\"③\",\"3\") &\".委託解除年月日\"","v":"3.委託解除年月日"}]
[]
[null,null,null,null,null,null,null,null,null,null,null,null,null,null,null,null,null,null,null,null,null,null,null,null,null,null,null,null,"③",null,null,null,null,null,null,null,null,null,null,null,null,null,null,null,null,null,null,null,null,null,null,null,null,null,null,null,null,null,null,null,null,null,null,null,null,null,null,null,{"$f":"IF(C47=\"\",\"\",INDIRECT(\"Q料率_業種一括有期・建設!$J$\"&B47,TRUE))","v":25},null,null,null,null,null,null,null,null,null,null,null,null,null,null,null,null,null,null,null,null,null,null,null,null,null,null,null,null,null,null,null,null,null,null,null,{"$f":"IF(C47=\"\",\"\",INDIRECT(\"Q料率_業種一括有期・建設!$F$\"&B47,TRUE))","v":9.5},null,null,null,null,null,null,null,null,null,null,null,null,null,null,null,null,null,null,null,{"$f":"ROUNDDOWN(IF(DK51=\"\",BY51*DA51,BY51*DK51),0)","v":0},null,null,null,null,null,null,null,null,null,null,null,null,null,null,null,null,null,null,null,null,null,null,null,null,null,null,null,null,null,null,null,null,null,null,null,null,null,"年",null,null,null,"月",null,null,null,"日"]
[]
[null,null,null,null,null,null,null,null,null,null,null,null,null,null,null,null,null,null,null,null,null,null,null,null,null,null,null,null,"④",null,null,null,null,null,null,null,null,null,null,null,null,null,null,null,null,null,null,null,null,null,null,null,null,null,null,null,null,null,null,null,null,null,null,null,null,null,null,null,{"$f":"IF(C47=\"\",\"\",INDIRECT(\"Q料率_業種一括有期・建設!$K$\"&B47,TRUE))","v":24},null,null,null,null,null,null,null,null,null,null,null,null,null,null,null,null,null,null,null,null,null,null,null,null,null,null,null,null,null,null,null,null,null,null,null,{"$f":"IF(C47=\"\",\"\",INDIRECT(\"Q料率_業種一括有期・建設!$G$\"&B47,TRUE))","v":9},null,null,null,null,null,null,null,null,null,null,null,null,null,null,null,null,null,null,null,{"$f":"ROUNDDOWN(IF(DK53=\"\",BY53*DA53,BY53*DK53),0)","v":0}]
[]
[{"$f":"C55","v":"35"},{"$f":"MATCH(C55,Q料率_業種一括有期・建設!B1:B10)","v":6},"35",null,null,null,null,null,null,null,"建築事業",null,null,null,null,null,null,null,null,null,null,null,null,null,null,null,null,null,"①",null,null,null,null,null,null,null,null,null,null,null,null,null,null,null,null,null,null,null,null,null,null,null,null,null,null,null,null,null,null,null,null,null,null,null,null,null,null,null,{"$f":"IF(C55=\"\",\"\",INDIRECT(\"Q料率_業種一括有期・建設!$H$\"&B55,TRUE))","v":21},null,null,null,null,null,null,null,null,null,null,null,null,null,null,null,null,null,null,null,null,null,null,null,null,null,null,null,null,null,null,null,null,null,null,null,{"$f":"IF(C55=\"\",\"\",INDIRECT(\"Q料率_業種一括有期・建設!$D$\"&B55,TRUE))","v":13},null,null,null,null,null,null,null,null,null,null,null,null,null,null,null,null,null,null,null,{"$f":"ROUNDDOWN(IF(DK55=\"\",BY55*DA55,BY55*DK55),0)","v":0}]
[null,null,null,null,null,null,null,null,null,null,null,null,null,null,null,null,null,null,null,null,null,null,null,null,null,null,null,null,null,null,null,null,null,null,null,null,null,null,null,null,null,null,null,null,null,null,null,null,null,null,null,null,null,null,null,null,null,null,null,null,null,null,null,null,null,null,null,null,null,null,null,null,null,null,null,null,null,null,null,null,null,null,null,null,null,null,null,null,null,null,null,null,null,null,null,null,null,null,null,null,null,null,null,null,null,null,null,null,null,null,null,null,null,null,null,null,null,null,null,null,null,null,null,null,null,null,null,null,null,null,null,null,null,null,null,null,null,null,null,null,null,null,null,null,null,null,null,null,null,null,null,null,null,null,null,null,null,null,null,null,null,{"$f":"IF(FI16=4,\"④\",\"4\")&\".委託解除拠出金納付済\"","v":"4.委託解除拠出金納付済"}]
[null,null,null,null,null,null,null,null,null,null,null,null,null,null,null,null,null,null,null,null,null,null,null,null,null,null,null,null,"②",null,null,null,null,null,null,null,null,null,null,null,null,null,null,null,null,null,null,null,null,null,null,null,null,null,null,null,null,null,null,null,null,null,null,null,null,null,null,null,{"$f":"IF(C55=\"\",\"\",INDIRECT(\"Q料率_業種一括有期・建設!$I$\"&B55,TRUE))","v":21},null,null,null,null,null,null,null,null,null,null,null,null,null,null,null,null,null,null,null,null,null,null,null,null,null,null,null,null,null,null,null,null,null,null,null,{"$f":"IF(C55=\"\",\"\",INDIRECT(\"Q料率_業種一括有期・建設!$E$\"&B55,TRUE))","v":13},null,null,null,null,null,null,null,null,null,null,null,null,null,null,null,null,null,null,null,{"$f":"ROUNDDOWN(IF(DK57=\"\",BY57*DA57,BY57*DK57),0)","v":0}]
[]
[null,null,null,null,null,null,null,null,null,null,null,null,null,null,null,null,null,null,null,null,null,null,null,null,null,null,null,null,"③",null,null,null,null,null,null,null,null,null,null,null,null,null,null,null,null,null,null,null,null,null,null,null,null,null,null,null,null,null,null,null,null,null,null,null,null,null,null,null,{"$f":"IF(C55=\"\",\"\",INDIRECT(\"Q料率_業種一括有期・建設!$J$\"&B55,TRUE))","v":23},null,null,null,null,null,null,null,null,null,null,null,null,null,null,null,null,null,null,null,null,null,null,null,null,null,null,null,null,null,null,null,null,null,null,null,{"$f":"IF(C55=\"\",\"\",INDIRECT(\"Q料率_業種一括有期・建設!$F$\"&B55,TRUE))","v":11},null,null,null,null,null,null,null,null,null,null,null,null,null,null,null,null,null,null,null,{"$f":"ROUNDDOWN(IF(DK59=\"\",BY59*DA59,BY59*DK59),0)","v":0},null,null,null,null,null,null,null,null,null,null,null,null,null,null,null,null,null,null,null,null,null,null,null,null,null,null,null,null,null,null,null,null,null,null,null,"7.延納の申請"]
[]
[null,null,null,null,null,null,null,null,null,null,null,null,null,null,null,null,null,null,null,null,null,null,null,null,null,null,null,null,"④",null,null,null,null,null,null,null,null,null,null,null,null,null,null,null,null,null,null,null,null,null,null,null,null,null,null,null,null,null,null,null,null,null,null,null,null,null,null,null,{"$f":"IF(C55=\"\",\"\",INDIRECT(\"Q料率_業種一括有期・建設!$K$\"&B55,TRUE))","v":23},null,null,null,null,null,null,null,null,null,null,null,null,null,null,null,null,null,null,null,null,null,null,null,null,null,null,null,null,null,null,null,null,null,null,null,{"$f":"IF(C55=\"\",\"\",INDIRECT(\"Q料率_業種一括有期・建設!$G$\"&B55,TRUE))","v":9.5},null,null,null,null,null,null,null,null,null,null,null,null,null,null,null,null,null,null,null,{"$f":"ROUNDDOWN(IF(DK61=\"\",BY61*DA61,BY61*DK61),0)","v":0}]
[null,null,null,null,null,null,null,null,null,null,null,null,null,null,null,null,null,null,null,null,null,null,null,null,null,null,null,null,null,null,null,null,null,null,null,null,null,null,null,null,null,null,null,null,null,null,null,null,null,null,null,null,null,null,null,null,null,null,null,null,null,null,null,null,null,null,null,null,null,null,null,null,null,null,null,null,null,null,null,null,null,null,null,null,null,null,null,null,null,null,null,null,null,null,null,null,null,null,null,null,null,null,null,null,null,null,null,null,null,null,null,null,null,null,null,null,null,null,null,null,null,null,null,null,null,null,null,null,null,null,null,null,null,null,null,null,null,null,null,null,null,null,null,null,null,null,null,null,null,null,null,null,null,null,null,null,null,null,null,null,null,{"$f":"IF(FM16=1,\"①\",\"1\") &\".一括納付\"","v":"1.一括納付"}]
[{"$f":"C63","v":"38"},{"$f":"MATCH(C63,Q料率_業種一括有期・建設!B1:B10,0)","v":7},"38",null,null,null,null,null,null,null,"既設建築物設備\n工事業",null,null,null,null,null,null,null,null,null,null,null,null,null,null,null,null,null,"①",null,null,null,null,null,null,null,null,null,null,null,null,null,null,null,null,null,null,null,null,null,null,null,null,null,null,null,null,null,null,null,null,null,null,null,null,null,null,null,{"$f":"IF(C63=\"\",\"\",INDIRECT(\"Q料率_業種一括有期・建設!$H$\"&B63,TRUE))","v":22},null,null,null,null,null,null,null,null,null,null,null,null,null,null,null,null,null,null,null,null,null,null,null,null,null,null,null,null,null,null,null,null,null,null,null,{"$f":"IF(C63=\"\",\"\",INDIRECT(\"Q料率_業種一括有期・建設!$D$\"&B63,TRUE))","v":15},null,null,null,null,null,null,null,null,null,null,null,null,null,null,null,null,null,null,null,{"$f":"ROUNDDOWN(IF(DK63=\"\",BY63*DA63,BY63*DK63),0)","v":0}]
[]
[null,null,null,null,null,null,null,null,null,null,null,null,null,null,null,null,null,null,null,null,null,null,null,null,null,null,null,null,"②",null,null,null,null,null,null,null,null,null,null,null,null,null,null,null,null,null,null,null,null,null,null,null,null,null,null,null,null,null,null,null,null,null,null,null,null,null,null,null,{"$f":"IF(C63=\"\",\"\",INDIRECT(\"Q料率_業種一括有期・建設!$I$\"&B63,TRUE))","v":22},null,null,null,null,null,null,null,null,null,null,null,null,null,null,null,null,null,null,null,null,null,null,null,null,null,null,null,null,null,null,null,null,null,null,null,{"$f":"IF(C63=\"\",\"\",INDIRECT(\"Q料率_業種一括有期・建設!$E$\"&B63,TRUE))","v":15},null,null,null,null,null,null,null,null,null,null,null,null,null,null,null,null,null,null,null,{"$f":"ROUNDDOWN(IF(DK65=\"\",BY65*DA65,BY65*DK65),0)","v":0},null,null,null,null,null,null,null,null,null,null,null,null,null,null,null,null,null,null,null,null,null,null,null,null,null,null,null,null,null,null,null,null,null,null,null,null,{"$f":"IF(FM16=2,\"②\",\"2\") &\".分納（３回）\"","v":"2.分納（３回）"}]
[]
[null,null,null,null,null,null,null,null,null,null,null,null,null,null,null,null,null,null,null,null,null,null,null,null,null,null,null,null,"③",null,null,null,null,null,null,null,null,null,null,null,null,null,null,null,null,null,null,null,null,null,null,null,null,null,null,null,null,null,null,null,null,null,null,null,null,null,null,null,{"$f":"IF(C63=\"\",\"\",INDIRECT(\"Q料率_業種一括有期・建設!$J$\"&B63,TRUE))","v":23},null,null,null,null,null,null,null,null,null,null,null,null,null,null,null,null,null,null,null,null,null,null,null,null,null,null,null,null,null,null,null,null,null,null,null,{"$f":"IF(C63=\"\",\"\",INDIRECT(\"Q料率_業種一括有期・建設!$F$\"&B63,TRUE))","v":15},null,null,null,null,null,null,null,null,null,null,null,null,null,null,null,null,null,null,null,{"$f":"ROUNDDOWN(IF(DK67=\"\",BY67*DA67,BY67*DK67),0)","v":0}]
[]
[null,null,null,null,null,null,null,null,null,null,null,null,null,null,null,null,null,null,null,null,null,null,null,null,null,null,null,null,"④",null,null,null,null,null,null,null,null,null,null,null,null,null,null,null,null,null,null,null,null,null,null,null,null,null,null,null,null,null,null,null,null,null,null,null,null,null,null,null,{"$f":"IF(C63=\"\",\"\",INDIRECT(\"Q料率_業種一括有期・建設!$K$\"&B63,TRUE))","v":23},null,null,null,null,null,null,null,null,null,null,null,null,null,null,null,null,null,null,null,null,null,null,null,null,null,null,null,null,null,null,null,null,null,null,null,{"$f":"IF(C63=\"\",\"\",INDIRECT(\"Q料率_業種一括有期・建設!$G$\"&B63,TRUE))","v":12},null,null,null,null,null,null,null,null,null,null,null,null,null,null,null,null,null,null,null,{"$f":"ROUNDDOWN(IF(DK69=\"\",BY69*DA69,BY69*DK69),0)","v":0}]
[]
["361",{"$f":"MATCH(B72,Q料率_業種一括有期・建設!C1:C10)","v":8},"36",null,null,null,null,null,null,null,"機械装置の組立又は据付けの事業",null,null,null,null,null,null,null,"組立又は取付に関するもの",null,null,null,null,null,null,null,null,null,"①",null,null,null,null,null,null,null,null,null,null,null,null,null,null,null,null,null,null,null,null,null,null,null,null,null,null,null,null,null,null,null,null,null,null,null,null,null,null,null,{"$f":"IF(C71=\"\",\"\",INDIRECT(\"Q料率_業種一括有期・建設!$H$\"&B71,TRUE))","v":38},null,null,null,null,null,null,null,null,null,null,null,null,null,null,null,null,null,null,null,null,null,null,null,null,null,null,null,null,null,null,null,null,null,null,null,{"$f":"IF(C71=\"\",\"\",INDIRECT(\"Q料率_業種一括有期・建設!$D$\"&B71,TRUE))","v":7.5},null,null,null,null,null,null,null,null,null,null,null,null,null,null,null,null,null,null,null,{"$f":"ROUNDDOWN(IF(DK71=\"\",BY71*DA71,BY71*DK71),0)","v":0},null,null,null,null,null,null,null,null,null,null,null,null,null,null,null,null,null,null,null,null,null,null,null,null,null,null,null,null,null,null,null,null,null,null,null,"*1.開始時期"]
[null,"1"]
[null,null,null,null,null,null,null,null,null,null,null,null,null,null,null,null,null,null,null,null,null,null,null,null,null,null,null,null,"②",null,null,null,null,null,null,null,null,null,null,null,null,null,null,null,null,null,null,null,null,null,null,null,null,null,null,null,null,null,null,null,null,null,null,null,null,null,null,null,{"$f":"IF(C71=\"\",\"\",INDIRECT(\"Q料率_業種一括有期・建設!$I$\"&B71,TRUE))","v":38},null,null,null,null,null,null,null,null,null,null,null,null,null,null,null,null,null,null,null,null,null,null,null,null,null,null,null,null,null,null,null,null,null,null,null,{"$f":"IF(C71=\"\",\"\",INDIRECT(\"Q料率_業種一括有期・建設!$E$\"&B71,TRUE))","v":7.5},null,null,null,null,null,null,null,null,null,null,null,null,null,null,null,null,null,null,null,{"$f":"ROUNDDOWN(IF(DK73=\"\",BY73*DA73,BY73*DK73),0)","v":0},null,null,null,null,null,null,null,null,null,null,null,null,null,null,null,null,null,null,null,null,null,null,null,null,null,null,null,null,null,null,null,null,null,null,null,{"$f":"Q料率_業種率改定履歴!C3","v":"①平成24年 4月 1日～平成25年 9月30日"},null,null,null,null,null,null,null,null,null,null,null,null,null,null,null,null,null,null,{"$f":"SUM(BY23:CZ94)","v":0}]
[]
[null,null,null,null,null,null,null,null,null,null,null,null,null,null,null,null,null,null,null,null,null,null,null,null,null,null,null,null,"③",null,null,null,null,null,null,null,null,null,null,null,null,null,null,null,null,null,null,null,null,null,null,null,null,null,null,null,null,null,null,null,null,null,null,null,null,null,null,null,{"$f":"IF(C71=\"\",\"\",INDIRECT(\"Q料率_業種一括有期・建設!$J$\"&B71,TRUE))","v":40},null,null,null,null,null,null,null,null,null,null,null,null,null,null,null,null,null,null,null,null,null,null,null,null,null,null,null,null,null,null,null,null,null,null,null,{"$f":"IF(C71=\"\",\"\",INDIRECT(\"Q料率_業種一括有期・建設!$F$\"&B71,TRUE))","v":6.5},null,null,null,null,null,null,null,null,null,null,null,null,null,null,null,null,null,null,null,{"$f":"ROUNDDOWN(IF(DK75=\"\",BY75*DA75,BY75*DK75),0)","v":0}]
[]
[null,null,null,null,null,null,null,null,null,null,null,null,null,null,null,null,null,null,null,null,null,null,null,null,null,null,null,null,"④",null,null,null,null,null,null,null,null,null,null,null,null,null,null,null,null,null,null,null,null,null,null,null,null,null,null,null,null,null,null,null,null,null,null,null,null,null,null,null,{"$f":"IF(C71=\"\",\"\",INDIRECT(\"Q料率_業種一括有期・建設!$K$\"&B71,TRUE))","v":38},null,null,null,null,null,null,null,null,null,null,null,null,null,null,null,null,null,null,null,null,null,null,null,null,null,null,null,null,null,null,null,null,null,null,null,{"$f":"IF(C71=\"\",\"\",INDIRECT(\"Q料率_業種一括有期・建設!$G$\"&B71,TRUE))","v":6.5},null,null,null,null,null,null,null,null,null,null,null,null,null,null,null,null,null,null,null,{"$f":"ROUNDDOWN(IF(DK77=\"\",BY77*DA77,BY77*DK77),0)","v":0},null,null,null,null,null,null,null,null,null,null,null,null,null,null,null,null,null,null,null,null,null,null,null,null,null,null,null,null,null,null,null,null,null,null,null,{"$f":"Q料率_業種率改定履歴!C4","v":"②平成25年10月 1日～平成27年 3月31日"},null,null,null,null,null,null,null,null,null,null,null,null,null,null,null,null,null,null,{"$f":"SUM(BY25:CZ30,BY33:CZ38,BY41:CZ46,BY49:CZ54,BY57:CZ62,BY65:CZ70,BY73:CZ78,BY81:CZ86,BY89:CZ94)","v":0}]
[]
["362",{"$f":"MATCH(B80,Q料率_業種一括有期・建設!C1:C10,0)","v":9},null,null,null,null,null,null,null,null,null,null,null,null,null,null,null,null,"その他のもの",null,null,null,null,null,null,null,null,null,"①",null,null,null,null,null,null,null,null,null,null,null,null,null,null,null,null,null,null,null,null,null,null,null,null,null,null,null,null,null,null,null,null,null,null,null,null,null,null,null,{"$f":"IF(C71=\"\",\"\",INDIRECT(\"Q料率_業種一括有期・建設!$H$\"&B79,TRUE))","v":21},null,null,null,null,null,null,null,null,null,null,null,null,null,null,null,null,null,null,null,null,null,null,null,null,null,null,null,null,null,null,null,null,null,null,null,{"$f":"IF(C71=\"\",\"\",INDIRECT(\"Q料率_業種一括有期・建設!$D$\"&B79,TRUE))","v":7.5},null,null,null,null,null,null,null,null,null,null,null,null,null,null,null,null,null,null,null,{"$f":"ROUNDDOWN(IF(DK79=\"\",BY79*DA79,BY79*DK79),0)","v":0}]
[null,"2"]
[null,null,null,null,null,null,null,null,null,null,null,null,null,null,null,null,null,null,null,null,null,null,null,null,null,null,null,null,"②",null,null,null,null,null,null,null,null,null,null,null,null,null,null,null,null,null,null,null,null,null,null,null,null,null,null,null,null,null,null,null,null,null,null,null,null,null,null,null,{"$f":"IF(C71=\"\",\"\",INDIRECT(\"Q料率_業種一括有期・建設!$I$\"&B79,TRUE))","v":21},null,null,null,null,null,null,null,null,null,null,null,null,null,null,null,null,null,null,null,null,null,null,null,null,null,null,null,null,null,null,null,null,null,null,null,{"$f":"IF(C71=\"\",\"\",INDIRECT(\"Q料率_業種一括有期・建設!$E$\"&B79,TRUE))","v":7.5},null,null,null,null,null,null,null,null,null,null,null,null,null,null,null,null,null,null,null,{"$f":"ROUNDDOWN(IF(DK81=\"\",BY81*DA81,BY81*DK81),0)","v":0},null,null,null,null,null,null,null,null,null,null,null,null,null,null,null,null,null,null,null,null,null,null,null,null,null,null,null,null,null,null,null,null,null,null,null,{"$f":"Q料率_業種率改定履歴!C5","v":"③平成27年 4月 1日～平成30年 3月31日"},null,null,null,null,null,null,null,null,null,null,null,null,null,null,null,null,null,null,{"$f":"SUM(BY27:CZ30,BY35:CZ38,BY43:CZ46,BY51:CZ54,BY59:CZ62,BY67:CZ70,BY75:CZ78,BY83:CZ86,BY91:CZ94)","v":0}]
[]
[null,null,null,null,null,null,null,null,null,null,null,null,null,null,null,null,null,null,null,null,null,null,null,null,null,null,null,null,"③",null,null,null,null,null,null,null,null,null,null,null,null,null,null,null,null,null,null,null,null,null,null,null,null,null,null,null,null,null,null,null,null,null,null,null,null,null,null,null,{"$f":"IF(C71=\"\",\"\",INDIRECT(\"Q料率_業種一括有期・建設!$J$\"&B79,TRUE))","v":22},null,null,null,null,null,null,null,null,null,null,null,null,null,null,null,null,null,null,null,null,null,null,null,null,null,null,null,null,null,null,null,null,null,null,null,{"$f":"IF(C71=\"\",\"\",INDIRECT(\"Q料率_業種一括有期・建設!$F$\"&B79,TRUE))","v":6.5},null,null,null,null,null,null,null,null,null,null,null,null,null,null,null,null,null,null,null,{"$f":"ROUNDDOWN(IF(DK83=\"\",BY83*DA83,BY83*DK83),0)","v":0}]
[]
[null,null,null,null,null,null,null,null,null,null,null,null,null,null,null,null,null,null,null,null,null,null,null,null,null,null,null,null,"④",null,null,null,null,null,null,null,null,null,null,null,null,null,null,null,null,null,null,null,null,null,null,null,null,null,null,null,null,null,null,null,null,null,null,null,null,null,null,null,{"$f":"IF(C71=\"\",\"\",INDIRECT(\"Q料率_業種一括有期・建設!$K$\"&B79,TRUE))","v":21},null,null,null,null,null,null,null,null,null,null,null,null,null,null,null,null,null,null,null,null,null,null,null,null,null,null,null,null,null,null,null,null,null,null,null,{"$f":"IF(C71=\"\",\"\",INDIRECT(\"Q料率_業種一括有期・建設!$G$\"&B79,TRUE))","v":6.5},null,null,null,null,null,null,null,null,null,null,null,null,null,null,null,null,null,null,null,{"$f":"ROUNDDOWN(IF(DK85=\"\",BY85*DA85,BY85*DK85),0)","v":0},null,null,null,null,null,null,null,null,null,null,null,null,null,null,null,null,null,null,null,null,null,null,null,null,null,null,null,null,null,null,null,null,null,null,null,{"$f":"Q料率_業種率改定履歴!C6","v":"④平成30年 4月 1日～"},null,null,null,null,null,null,null,null,null,null,null,null,null,null,null,null,null,null,{"$f":"SUM(BY29,BY37,BY45,BY53,BY61,BY69,BY77,BY85,BY93)","v":0}]
[]
[{"$f":"C87","v":"37"},{"$f":"MATCH(C87,Q料率_業種一括有期・建設!B1:B10,0)","v":10},"37",null,null,null,null,null,null,null,"その他の\n建設事業",null,null,null,null,null,null,null,null,null,null,null,null,null,null,null,null,null,"①",null,null,null,null,null,null,null,null,null,null,null,null,null,null,null,null,null,null,null,null,null,null,null,null,null,null,null,null,null,null,null,null,null,null,null,null,null,null,null,{"$f":"IF(C87=\"\",\"\",INDIRECT(\"Q料率_業種一括有期・建設!$H$\"&B87,TRUE))","v":23},null,null,null,null,null,null,null,null,null,null,null,null,null,null,null,null,null,null,null,null,null,null,null,null,null,null,null,null,null,null,null,null,null,null,null,{"$f":"IF(C87=\"\",\"\",INDIRECT(\"Q料率_業種一括有期・建設!$D$\"&B87,TRUE))","v":19},null,null,null,null,null,null,null,null,null,null,null,null,null,null,null,null,null,null,null,{"$f":"ROUNDDOWN(IF(DK87=\"\",BY87*DA87,BY87*DK87),0)","v":0}]
[]
[null,null,null,null,null,null,null,null,null,null,null,null,null,null,null,null,null,null,null,null,null,null,null,null,null,null,null,null,"②",null,null,null,null,null,null,null,null,null,null,null,null,null,null,null,null,null,null,null,null,null,null,null,null,null,null,null,null,null,null,null,null,null,null,null,null,null,null,null,{"$f":"IF(C87=\"\",\"\",INDIRECT(\"Q料率_業種一括有期・建設!$I$\"&B87,TRUE))","v":23},null,null,null,null,null,null,null,null,null,null,null,null,null,null,null,null,null,null,null,null,null,null,null,null,null,null,null,null,null,null,null,null,null,null,null,{"$f":"IF(C87=\"\",\"\",INDIRECT(\"Q料率_業種一括有期・建設!$E$\"&B87,TRUE))","v":19},null,null,null,null,null,null,null,null,null,null,null,null,null,null,null,null,null,null,null,{"$f":"ROUNDDOWN(IF(DK89=\"\",BY89*DA89,BY89*DK89),0)","v":0}]
[]
[null,null,null,null,null,null,null,null,null,null,null,null,null,null,null,null,null,null,null,null,null,null,null,null,null,null,null,null,"③",null,null,null,null,null,null,null,null,null,null,null,null,null,null,null,null,null,null,null,null,null,null,null,null,null,null,null,null,null,null,null,null,null,null,null,null,null,null,null,{"$f":"IF(C87=\"\",\"\",INDIRECT(\"Q料率_業種一括有期・建設!$J$\"&B87,TRUE))","v":24},null,null,null,null,null,null,null,null,null,null,null,null,null,null,null,null,null,null,null,null,null,null,null,null,null,null,null,null,null,null,null,null,null,null,null,{"$f":"IF(C87=\"\",\"\",INDIRECT(\"Q料率_業種一括有期・建設!$F$\"&B87,TRUE))","v":17},null,null,null,null,null,null,null,null,null,null,null,null,null,null,null,null,null,null,null,{"$f":"ROUNDDOWN(IF(DK91=\"\",BY91*DA91,BY91*DK91),0)","v":0},null,null,null,null,null,null,null,null,null,null,null,null,null,null,null,null,null,null,null,null,null,null,null,null,null,null,null,null,null,null,null,null,null,null,null,"*2.特別加入者・保険料"]
[]
[null,null,null,null,null,null,null,null,null,null,null,null,null,null,null,null,null,null,null,null,null,null,null,null,null,null,null,null,"④",null,null,null,null,null,null,null,null,null,null,null,null,null,null,null,null,null,null,null,null,null,null,null,null,null,null,null,null,null,null,null,null,null,null,null,null,null,null,null,{"$f":"IF(C87=\"\",\"\",INDIRECT(\"Q料率_業種一括有期・建設!$K$\"&B87,TRUE))","v":24},null,null,null,null,null,null,null,null,null,null,null,null,null,null,null,null,null,null,null,null,null,null,null,null,null,null,null,null,null,null,null,null,null,null,null,{"$f":"IF(C87=\"\",\"\",INDIRECT(\"Q料率_業種一括有期・建設!$G$\"&B87,TRUE))","v":15},null,null,null,null,null,null,null,null,null,null,null,null,null,null,null,null,null,null,null,{"$f":"ROUNDDOWN(IF(DK93=\"\",BY93*DA93,BY93*DK93),0)","v":0},null,null,null,null,null,null,null,null,null,null,null,null,null,null,null,null,null,null,null,null,null,null,null,null,null,null,null,null,null,null,null,null,null,null,null,"　　算定基礎額の計"]
[]
[null,null,"計",null,null,null,null,null,null,null,null,null,null,null,null,null,null,null,null,null,null,null,null,null,null,null,null,null,null,null,null,null,{"$f":"SUM(AG23:BP94)","v":0},null,null,null,null,null,null,null,null,null,null,null,null,null,null,null,null,null,null,null,null,null,null,null,null,null,null,null,null,null,null,null,null,null,null,null,null,null,null,null,null,null,null,null,null,null,null,null,null,null,null,null,null,null,null,null,null,null,null,null,null,null,null,null,null,null,null,null,null,null,null,null,null,null,null,null,null,null,null,null,null,null,null,null,null,null,null,null,null,null,null,null,{"$f":"SUM(DU23:FD94)","v":0}]
[]
[null,null,"特別加入者",null,null,null,null,null,null,null,null,null,null,null,null,null,null,null,null,null,null,null,null,null,null,null,null,null,null,null,null,null,null,null,null,null,null,null,null,null,null,null,null,null,null,null,null,null,null,null,null,null,null,null,null,null,null,null,null,null,"人分",null,null,null,null,null,null,null,null,null,null,null,null,null,null,null,"*2",null,null,null,null,null,null,null,null,null,null,null,null,null,null,null,null,null,null,null,null,null,null,null,null,null,null,null,null,null,null,null,null,null,null,null,null,null,null,null,null,null,null,null,null,null,null,null,{"$f":"IF(CC97=\"\",\"\",ROUNDDOWN(IF(DK97=\"\",CC97*DA97,CC97*DK97),0))","v":""}]
[null,null,null,null,null,null,null,null,null,null,null,null,null,null,null,null,null,null,null,null,null,null,null,null,null,null,null,null,null,null,null,null,null,null,null,null,null,null,null,null,null,null,null,null,null,null,null,null,null,null,null,null,null,null,null,null,null,null,null,null,null,null,null,null,null,null,null,null,null,null,null,null,null,null,null,null,null,null,null,null,null,null,null,null,null,null,null,null,null,null,null,null,null,null,null,null,null,null,null,null,null,null,null,null,null,null,null,null,null,null,null,null,null,null,null,null,null,null,null,null,null,null,null,null,null,null,null,null,null,null,null,null,null,null,null,null,null,null,null,null,null,null,null,null,null,null,null,null,null,null,null,null,null,null,null,null,null,null,null,null,null,"申告済概算保険料"]
[null,null,null,null,null,null,null,null,null,null,null,null,null,null,null,null,null,null,null,null,null,null,null,null,null,null,null,null,null,null,null,null,null,null,null,null,null,null,null,null,null,null,null,null,null,null,null,null,null,null,null,null,null,null,null,null,null,null,null,null,null,null,null,null,null,null,null,null,null,null,null,null,null,null,null,null,null,null,null,null,null,null,null,null,null,null,null,null,null,null,null,null,null,null,null,null,null,null,null,null,null,null,null,null,null,null,null,null,null,null,null,null,null,null,null,null,null,null,null,null,null,null,null,null,{"$f":"ROUNDDOWN(IF(DK99=\"\",CC99*DA99,CC99*DK99),0)","v":0}]
[null,null,null,null,null,null,null,null,null,null,null,null,null,null,null,null,null,null,null,null,null,null,null,null,null,null,null,null,null,null,null,null,null,null,null,null,null,null,null,null,null,null,null,null,null,null,null,null,null,null,null,null,null,null,null,null,null,null,null,null,null,null,null,null,null,null,null,null,null,null,null,null,null,null,null,null,null,null,null,null,null,null,null,null,null,null,null,null,null,null,null,null,null,null,null,null,null,null,null,null,null,null,null,null,null,null,null,null,null,null,null,null,null,null,null,null,null,null,null,null,null,null,null,null,null,null,null,null,null,null,null,null,null,null,null,null,null,null,null,null,null,null,null,null,null,null,null,null,null,null,null,null,null,null,null,null,null,null,null,null,null,null,null,null,null,null,null,null,null,null,null,null,null,null,"円"]
[null,null,"保険料計",null,null,null,null,null,null,null,null,null,null,null,null,null,null,null,null,null,null,null,null,null,null,null,null,null,null,null,null,null,null,null,null,null,null,null,null,null,null,null,null,null,null,null,null,null,null,null,null,null,null,null,null,null,null,null,null,null,null,null,null,null,null,null,null,null,null,null,null,null,null,null,null,null,null,null,null,null,null,null,null,null,null,null,null,null,null,null,null,null,null,null,null,null,null,null,null,null,null,null,null,null,null,null,null,null,null,null,null,null,null,null,null,null,null,null,null,null,null,null,null,null,{"$f":"SUM(DU95:FD98)","v":0}]
[]
[]
[]
[null,null,"一般拠出金",null,null,null,null,null,null,null,null,null,null,null,null,null,null,null,null,null,null,null,null,null,null,null,null,null,null,null,null,null,null,null,null,null,null,null,null,null,null,null,null,null,null,null,null,null,null,null,null,null,null,null,null,null,null,null,null,null,null,null,null,null,null,null,null,null,null,null,null,null,null,null,null,null,null,null,null,null,null,null,null,null,null,null,null,null,null,null,null,null,null,null,null,null,null,null,null,null,null,null,null,null,{"$f":"Q料率_拠出金!B2","v":1.9999999552965164E-2},null,null,null,null,null,null,null,null,null,null,null,null,null,null,null,null,null,null,null,{"$f":"ROUNDDOWN(BY105*DA105,0)","v":0}]
[]
[]
["NO.",null,"特別加入者の氏名",null,null,null,null,null,null,null,null,null,null,null,null,null,null,null,null,null,null,"承認された\n基礎日額",null,null,null,null,null,null,null,null,"適用月数",null,null,null,null,null,null,null,null,"希望する\n基礎日額",null,null,null,null,null,null,null,null,null,null,"NO.",null,null,null,"特別加入者の氏名",null,null,null,null,null,null,null,null,null,null,null,null,null,null,null,null,null,null,null,null,null,null,null,null,null,null,"承認された\n基礎日額",null,null,null,null,null,null,null,null,null,null,null,"適用月数",null,null,null,null,null,null,null,null,null,"希望する\n基礎日額",null,null,null,null,null,null,null,null,null,null,null,null,null,null,"NO.",null,null,null,null,null,"特別加入者の氏名",null,null,null,null,null,null,null,null,null,null,null,null,null,null,null,null,null,null,null,null,null,null,null,null,null,"承認された\n基礎日額",null,null,null,null,null,null,null,null,null,null,"適用月数",null,null,null,null,null,"希望する\n基礎日額"]
[]
[null,null,null,null,null,null,null,null,null,null,null,null,null,null,null,null,null,null,null,null,null,null,null,null,null,null,null,null,null,null,"確定",null,null,null,"概算",null,null,null,null,null,null,null,null,null,null,null,null,null,null,null,null,null,null,null,null,null,null,null,null,null,null,null,null,null,null,null,null,null,null,null,null,null,null,null,null,null,null,null,null,null,null,null,null,null,null,null,null,null,null,null,null,null,null,"確定",null,null,null,null,"概算",null,null,null,null,null,null,null,null,null,null,null,null,null,null,null,null,null,null,null,null,null,null,null,null,null,null,null,null,null,null,null,null,null,null,null,null,null,null,null,null,null,null,null,null,null,null,null,null,null,null,null,null,null,null,null,null,null,null,null,null,null,null,"確定",null,null,"概算"]
[]
[null,null,null,null,null,null,null,null,null,null,null,null,null,null,null,null,null,null,null,null,null,"円",null,null,null,null,null,null,null,null,null,null,null,null,null,null,null,null,null,null,null,null,null,null,null,"円",null,null,null,null,null,null,null,null,null,null,null,null,null,null,null,null,null,null,null,null,null,null,null,null,null,null,null,null,null,null,null,null,null,null,null,"円",null,null,null,null,null,null,null,null,null,null,null,null,null,null,null,null,null,null,null,null,null,null,null,null,null,null,null,null,null,null,"円",null,null,null,null,null,null,null,null,null,null,null,null,null,null,null,null,null,null,null,null,null,null,null,null,null,null,null,null,null,null,null,null,null,null,null,null,null,"円",null,null,null,null,null,null,null,null,null,null,null,null,null,null,null,null,null,null,null,null,"円"]
[null,null,null,null,null,null,null,null,null,null,null,null,null,null,null,null,null,null,null,null,null,null,null,null,null,null,null,null,null,null,null,null,null,null,null,null,null,null,null,null,null,null,null,null,null,"00",null,null,null,null,null,null,null,null,null,null,null,null,null,null,null,null,null,null,null,null,null,null,null,null,null,null,null,null,null,null,null,null,null,null,null,null,null,null,null,null,null,null,null,null,null,null,null,null,null,null,null,null,null,null,null,null,null,null,null,null,null,null,null,null,null,null,"00",null,null,null,null,null,null,null,null,null,null,null,null,null,null,null,null,null,null,null,null,null,null,null,null,null,null,null,null,null,null,null,null,null,null,null,null,null,null,null,null,null,null,null,null,null,null,null,null,null,null,null,null,null,null,null,null,null,null,"00"]
[]
[null,null,null,null,null,null,null,null,null,null,null,null,null,null,null,null,null,null,null,null,null,"円",null,null,null,null,null,null,null,null,null,null,null,null,null,null,null,null,null,null,null,null,null,null,null,"円",null,null,null,null,null,null,null,null,null,null,null,null,null,null,null,null,null,null,null,null,null,null,null,null,null,null,null,null,null,null,null,null,null,null,null,"円",null,null,null,null,null,null,null,null,null,null,null,null,null,null,null,null,null,null,null,null,null,null,null,null,null,null,null,null,null,null,"円",null,null,null,null,null,null,null,null,null,null,null,null,null,null,null,null,null,null,null,null,null,null,null,null,null,null,null,null,null,null,null,null,null,null,null,null,null,"円",null,null,null,null,null,null,null,null,null,null,null,null,null,null,null,null,null,null,null,null,"円"]
[null,null,null,null,null,null,null,null,null,null,null,null,null,null,null,null,null,null,null,null,null,null,null,null,null,null,null,null,null,null,null,null,null,null,null,null,null,null,null,null,null,null,null,null,null,"00",null,null,null,null,null,null,null,null,null,null,null,null,null,null,null,null,null,null,null,null,null,null,null,null,null,null,null,null,null,null,null,null,null,null,null,null,null,null,null,null,null,null,null,null,null,null,null,null,null,null,null,null,null,null,null,null,null,null,null,null,null,null,null,null,null,null,"00",null,null,null,null,null,null,null,null,null,null,null,null,null,null,null,null,null,null,null,null,null,null,null,null,null,null,null,null,null,null,null,null,null,null,null,null,null,null,null,null,null,null,null,null,null,null,null,null,null,null,null,null,null,null,null,null,null,null,"00"]
[]
[null,null,null,null,null,null,null,null,null,null,null,null,null,null,null,null,null,null,null,null,null,"円",null,null,null,null,null,null,null,null,null,null,null,null,null,null,null,null,null,null,null,null,null,null,null,"円",null,null,null,null,null,null,null,null,null,null,null,null,null,null,null,null,null,null,null,null,null,null,null,null,null,null,null,null,null,null,null,null,null,null,null,"円",null,null,null,null,null,null,null,null,null,null,null,null,null,null,null,null,null,null,null,null,null,null,null,null,null,null,null,null,null,null,"円",null,null,null,null,null,null,null,null,null,null,null,null,null,null,null,null,null,null,null,null,null,null,null,null,null,null,null,null,null,null,null,null,null,null,null,null,null,"円",null,null,null,null,null,null,null,null,null,null,null,null,null,null,null,null,null,null,null,null,"円"]
[null,null,null,null,null,null,null,null,null,null,null,null,null,null,null,null,null,null,null,null,null,null,null,null,null,null,null,null,null,null,null,null,null,null,null,null,null,null,null,null,null,null,null,null,null,"00",null,null,null,null,null,null,null,null,null,null,null,null,null,null,null,null,null,null,null,null,null,null,null,null,null,null,null,null,null,null,null,null,null,null,null,null,null,null,null,null,null,null,null,null,null,null,null,null,null,null,null,null,null,null,null,null,null,null,null,null,null,null,null,null,null,null,"00",null,null,null,null,null,null,null,null,null,null,null,null,null,null,null,null,null,null,null,null,null,null,null,null,null,null,null,null,null,null,null,null,null,null,null,null,null,null,null,null,null,null,null,null,null,null,null,null,null,null,null,null,null,null,null,null,null,null,"00"]
[]
[null,null,null,null,null,null,null,null,null,null,null,null,null,null,null,null,null,null,null,null,null,"円",null,null,null,null,null,null,null,null,null,null,null,null,null,null,null,null,null,null,null,null,null,null,null,"円",null,null,null,null,null,null,null,null,null,null,null,null,null,null,null,null,null,null,null,null,null,null,null,null,null,null,null,null,null,null,null,null,null,null,null,"円",null,null,null,null,null,null,null,null,null,null,null,null,null,null,null,null,null,null,null,null,null,null,null,null,null,null,null,null,null,null,"円",null,null,null,null,null,null,null,null,null,null,null,null,null,null,null,null,null,null,null,null,null,null,null,null,null,null,null,null,null,null,null,null,null,null,null,null,null,"円",null,null,null,null,null,null,null,null,null,null,null,null,null,null,null,null,null,null,null,null,"円"]
[null,null,null,null,null,null,null,null,null,null,null,null,null,null,null,null,null,null,null,null,null,null,null,null,null,null,null,null,null,null,null,null,null,null,null,null,null,null,null,null,null,null,null,null,null,"00",null,null,null,null,null,null,null,null,null,null,null,null,null,null,null,null,null,null,null,null,null,null,null,null,null,null,null,null,null,null,null,null,null,null,null,null,null,null,null,null,null,null,null,null,null,null,null,null,null,null,null,null,null,null,null,null,null,null,null,null,null,null,null,null,null,null,"00",null,null,null,null,null,null,null,null,null,null,null,null,null,null,null,null,null,null,null,null,null,null,null,null,null,null,null,null,null,null,null,null,null,null,null,null,null,null,null,null,null,null,null,null,null,null,null,null,null,null,null,null,null,null,null,null,null,null,"00"]
[]
[]
["別途一括有期事業報告書の明細及び算定基礎賃金等を\n上記のとおり総括して報告します。"]
[]
[null,null,null,null,null,null,null,null,null,null,null,null,null,null,null,null,null,null,null,null,null,null,null,null,null,null,null,null,null,null,null,null,null,null,null,null,null,null,null,null,null,null,null,null,null,null,null,null,null,null,null,null,null,null,null,null,null,null,null,null,null,null,null,null,null,null,null,null,null,null,null,null,null,null,null,null,null,null,null,null,null,null,null,null,null,null,null,null,null,null,null,null,null,null,null,null,null,null,null,null,null,null,null,null,null,null,"1期",null,null,null,null,null,null,null,null,null,null,null,null,null,null,null,null,null,null,null,null,null,null,null,null,null,null,null,null,null,null,"円",null,null,null,null,null,null,null,null,null,null,null,null,null,null,null,null,null,null,null,"円",null,null,null,null,null,null,null,null,null,null,null,"円"]
[]
[null,null,null,null,null,null,null,null,null,null,null,null,null,null,null,null,null,null,null,null,null,null,null,null,null,null,null,null,null,null,null,null,null,null,null,null,null,null,null,null,null,null,null,null,null,null,null,null,null,null,null,null,null,null,null,null,null,null,null,null,null,null,null,null,null,null,null,null,null,null,null,null,null,null,null,null,null,null,null,null,null,null,null,null,null,null,null,null,null,null,null,null,null,null,null,null,null,null,null,null,null,null,null,null,null,null,"2期",null,null,null,null,null,null,null,null,null,null,null,null,null,null,null,null,null,null,null,null,null,null,null,null,null,null,null,null,null,null,"円",null,null,null,null,null,null,null,null,null,null,null,null,null,null,null,null,null,null,null,"円",null,null,null,null,null,null,null,null,null,null,null,"円"]
[null,null,"令和",null,null,null,null,null,null,null,null,null,"年",null,null,null,null,null,null,null,"月",null,null,null,null,null,null,null,"日"]
[null,null,null,null,null,null,null,null,null,null,null,null,null,null,null,null,null,null,null,null,null,null,null,null,null,null,null,null,null,null,null,null,null,null,null,null,null,null,null,null,null,null,null,null,null,null,null,null,null,null,null,null,null,null,null,null,null,null,null,null,null,null,null,null,null,null,null,null,null,null,null,null,null,null,null,null,null,null,null,null,null,null,null,null,null,null,null,null,null,null,null,null,null,null,null,null,null,null,null,null,null,null,null,null,null,null,"3期",null,null,null,null,null,null,null,null,null,null,null,null,null,null,null,null,null,null,null,null,null,null,null,null,null,null,null,null,null,null,"円",null,null,null,null,null,null,null,null,null,null,null,null,null,null,null,null,null,null,null,"円",null,null,null,null,null,null,null,null,null,null,null,"円"]
[null,null,null,null,null,null,null,null,null,null,null,null,null,null,null,null,null,null,null,null,null,null,null,null,null,null,null,null,null,null,null,"事業主氏名"]
[]
[null,null,null,null,null,null,null,null,null,null,null,null,null,null,null,null,null,null,null,null,null,null,null,null,null,null,null,null,null,null,null,null,null,null,null,null,null,null,null,null,null,null,null,null,null,null,null,null,null,null,null,null,null,null,null,null,null,null,null,null,null,null,null,null,null,null,null,null,null,null,null,null,null,null,null,null,null,null,null,null,null,null,null,null,null,null,null,null,null,null,null,null,null,null,null,null,null,null,null,null,null,null,null,null,null,null,null,null,null,null,null,null,null,null,null,null,null,null,null,"作成者氏名"]
[]
[null,null,null,null,null,null,null,null,null,null,"労働局労働保険特別会計歳入徴収官 殿"]

{"sheet":"総括表・請負金額 ","index":1,"n_rows":136,"n_cols":175,"rows_kept":136,"cut":false,"hidden":false,"merged":[[80,68,81,75],[82,68,83,75],[22,68,23,75],[24,68,25,75],[102,68,103,75],[2,17,4,22],[2,23,4,25],[12,2,13,12],[17,6,20,27],[14,2,14,75],[46,28,47,31],[7,13,8,75],[26,68,27,75],[88,68,89,75],[2,122,4,178],[5,122,7,178],[15,164,15,167],[15,168,15,175],[10,122,12,127],[10,128,12,132],[8,138,9,152],[10,143,12,147],[10,148,12,152],[8,102,9,137],[100,2,103,31],[129,2,130,6],[0,170,0,171],[0,163,0,169],[100,124,103,159],[104,124,105,159],[10,138,12,142],[17,124,20,159],[21,124,21,159],[92,124,93,159],[88,124,89,159],[28,124,29,159],[120,164,122,166],[114,161,116,163],[117,164,119,166],[130,137,131,139],[124,160,125,170],[114,124,116,149],[117,124,119,149],[120,167,122,170],[130,157,131,159],[128,160,129,168],[66,76,67,103],[56,76,57,103],[114,103,116,111],[96,60,99,67],[96,76,97,79],[98,76,99,79],[102,114,103,123],[104,68,105,75],[96,80,97,103],[104,114,105,123],[100,104,101,113],[102,32,103,67],[115,45,116,48],[112,45,113,48],[111,34,113,38],[111,45,111,48],[100,114,101,123],[111,103,113,111],[109,161,110,163],[111,150,111,160],[112,150,113,160],[114,112,114,116],[111,118,113,123],[120,118,122,123],[117,161,119,163],[124,140,125,159],[120,124,122,149],[114,150,114,160],[115,150,116,160],[117,150,117,160],[118,150,119,160],[117,118,119,123],[111,171,111,172],[114,164,116,166],[114,167,116,170],[114,171,114,172],[115,171,116,172],[112,171,113,172],[121,171,122,172],[120,150,120,160],[121,150,122,160],[120,161,122,163],[117,171,117,172],[118,171,119,172],[117,167,119,170],[120,171,120,172],[107,0,110,1],[107,2,110,20],[114,0,116,1],[117,0,119,1],[114,30,116,33],[107,50,110,53],[107,167,110,172],[107,118,110,123],[111,93,113,97],[111,167,113,170],[111,164,113,166],[111,161,113,163],[111,98,113,102],[109,164,110,166],[107,150,110,160],[111,124,113,149],[107,161,108,166],[111,54,113,80],[111,112,111,116],[111,81,111,92],[107,124,110,149],[107,103,110,116],[107,54,110,80],[112,112,113,116],[118,21,119,29],[112,21,113,29],[111,50,113,53],[111,0,113,1],[114,45,114,48],[117,39,119,44],[111,21,111,29],[111,30,113,33],[115,21,116,29],[114,21,114,29],[117,30,119,33],[111,39,113,44],[118,45,119,48],[111,2,113,20],[120,0,122,1],[130,160,131,168],[130,169,131,170],[131,46,133,93],[131,31,133,45],[133,170,135,172],[130,116,131,136],[133,140,135,168],[130,106,131,115],[126,169,127,170],[128,137,129,139],[126,160,127,168],[124,116,125,139],[129,24,130,27],[129,28,130,30],[128,106,129,115],[129,12,130,15],[129,16,130,19],[130,140,131,156],[129,7,130,11],[129,20,130,23],[128,169,129,170],[128,140,129,156],[126,106,127,115],[126,157,127,159],[128,116,129,136],[126,116,127,136],[128,157,129,159],[126,137,127,139],[126,140,127,156],[114,39,116,44],[117,50,119,53],[114,50,116,53],[114,81,114,92],[90,32,91,67],[88,32,89,67],[86,32,87,67],[133,119,135,139],[131,95,133,100],[107,39,110,48],[109,30,110,33],[109,34,110,38],[115,81,116,92],[114,98,116,102],[112,81,113,92],[114,118,116,123],[115,112,116,116],[117,103,119,111],[117,81,117,92],[117,112,117,116],[117,98,119,102],[114,93,116,97],[118,81,119,92],[118,112,119,116],[38,10,45,27],[38,2,45,5],[44,28,45,31],[21,32,21,67],[38,32,39,67],[40,32,41,67],[135,0,137,9],[114,2,116,20],[117,2,119,20],[120,2,122,20],[135,10,137,54],[120,30,122,33],[114,34,116,38],[117,34,119,38],[124,0,127,66],[120,54,122,80],[46,2,53,5],[104,2,105,31],[107,21,110,29],[104,32,105,67],[107,30,108,38],[82,76,83,103],[114,54,116,80],[117,93,119,97],[0,0,21,1],[17,2,18,5],[21,2,21,5],[0,2,1,18],[12,13,13,52],[2,34,4,75],[2,2,8,12],[19,2,20,5],[21,6,21,27],[2,13,4,16],[17,68,18,75],[19,68,20,75],[15,28,15,40],[15,41,15,75],[17,32,20,67],[17,28,18,31],[5,13,6,75],[2,26,4,33],[12,53,13,75],[26,32,27,67],[21,28,21,31],[19,28,20,31],[22,32,23,67],[22,10,29,27],[24,32,25,67],[22,28,23,31],[24,28,25,31],[26,28,27,31],[28,32,29,67],[99,174,102,175],[84,76,85,103],[86,76,87,103],[84,114,85,123],[97,161,98,174],[90,160,91,175],[92,160,93,175],[88,76,89,103],[90,76,91,103],[99,161,102,173],[21,68,21,75],[70,104,71,113],[68,104,69,113],[48,104,49,113],[26,76,27,103],[28,76,29,103],[46,76,47,103],[48,76,49,103],[58,76,59,103],[54,76,55,103],[62,76,63,103],[64,76,65,103],[30,28,31,31],[28,28,29,31],[62,28,63,31],[64,28,65,31],[56,28,57,31],[58,28,59,31],[54,28,55,31],[42,28,43,31],[42,32,43,67],[36,32,37,67],[30,32,31,67],[38,28,39,31],[40,28,41,31],[36,28,37,31],[32,28,33,31],[34,28,35,31],[34,32,35,67],[32,32,33,67],[66,28,67,31],[70,32,71,67],[50,28,51,31],[48,28,49,31],[62,32,63,67],[52,28,53,31],[60,28,61,31],[54,32,55,67],[56,32,57,67],[58,32,59,67],[48,32,49,67],[72,104,73,113],[72,114,73,123],[74,68,75,75],[72,68,73,75],[68,28,69,31],[68,32,69,67],[70,28,71,31],[72,28,73,31],[74,28,75,31],[72,32,73,67],[70,68,71,75],[72,76,73,103],[70,76,71,103],[74,76,75,103],[74,32,75,67],[68,68,69,75],[68,76,69,103],[58,68,59,75],[62,68,63,75],[64,68,65,75],[50,76,51,103],[66,68,67,75],[36,76,37,103],[44,32,45,67],[52,32,53,67],[60,32,61,67],[50,32,51,67],[64,32,65,67],[66,32,67,67],[46,32,47,67],[52,104,53,113],[42,76,43,103],[60,68,61,75],[60,76,61,103],[52,68,53,75],[52,76,53,103],[54,68,55,75],[56,68,57,75],[54,104,55,113],[42,104,43,113],[28,68,29,75],[38,76,39,103],[50,104,51,113],[50,68,51,75],[48,68,49,75],[44,68,45,75],[44,76,45,103],[46,104,47,113],[46,68,47,75],[40,76,41,103],[32,76,33,103],[34,76,35,103],[66,104,67,113],[62,104,63,113],[56,104,57,113],[56,114,57,123],[58,104,59,113],[64,104,65,113],[64,114,65,123],[62,114,63,123],[60,104,61,113],[58,114,59,123],[96,124,97,159],[98,124,99,159],[96,114,97,123],[98,114,99,123],[86,114,87,123],[86,124,87,159],[90,124,91,159],[68,114,69,123],[66,114,67,123],[88,114,89,123],[90,114,91,123],[82,114,83,123],[80,114,81,123],[74,114,75,123],[78,114,79,123],[76,114,77,123],[70,114,71,123],[9,13,11,75],[9,2,11,12],[10,133,12,137],[10,82,12,86],[10,92,12,96],[10,97,12,101],[10,102,12,107],[94,104,95,113],[92,104,93,113],[92,114,93,123],[94,2,95,31],[88,104,89,113],[90,104,91,113],[82,104,83,113],[86,104,87,113],[84,104,85,113],[74,104,75,113],[76,104,77,113],[78,104,79,113],[80,104,81,113],[48,114,49,123],[28,104,29,113],[42,114,43,123],[38,104,39,113],[60,114,61,123],[50,114,51,123],[54,114,55,123],[10,108,12,114],[10,115,12,121],[10,77,12,81],[10,87,12,91],[26,114,27,123],[22,104,23,113],[22,114,23,123],[24,104,25,113],[24,114,25,123],[13,94,14,159],[36,104,37,113],[40,104,41,113],[40,114,41,123],[36,114,37,123],[38,114,39,123],[44,114,45,123],[42,124,43,159],[34,104,35,113],[46,114,47,123],[44,104,45,113],[32,104,33,113],[66,124,67,159],[70,124,71,159],[68,124,69,159],[72,124,73,159],[78,124,79,159],[76,124,77,159],[74,124,75,159],[13,77,14,93],[46,124,47,159],[48,124,49,159],[30,124,31,159],[30,114,31,123],[36,124,37,159],[26,104,27,113],[21,114,21,123],[21,104,21,113],[44,124,45,159],[60,124,61,159],[64,124,65,159],[52,114,53,123],[50,124,51,159],[56,124,57,159],[58,124,59,159],[62,124,63,159],[6,77,7,94],[17,104,18,113],[19,104,20,113],[30,104,31,113],[22,76,23,103],[24,76,25,103],[30,76,31,103],[8,77,9,86],[8,87,9,91],[8,92,9,101],[21,76,21,103],[17,76,20,103],[15,77,15,93],[15,94,15,159],[17,114,18,123],[19,114,20,123],[2,95,7,121],[120,21,120,29],[121,21,122,29],[120,34,122,38],[117,21,117,29],[121,45,122,48],[102,76,103,103],[104,76,105,103],[96,104,97,113],[98,104,99,113],[102,104,103,113],[104,104,105,113],[100,76,101,103],[96,32,99,59],[100,32,101,67],[100,68,101,75],[98,80,99,103],[96,2,99,31],[96,68,97,75],[98,68,99,75],[109,98,110,102],[107,93,108,102],[109,93,110,97],[107,81,110,92],[117,54,119,80],[120,50,122,53],[120,98,122,102],[120,103,122,111],[121,112,122,116],[120,81,120,92],[121,81,122,92],[120,112,120,116],[120,93,122,97],[120,39,122,44],[94,124,95,159],[94,32,95,67],[94,114,95,123],[76,76,77,103],[80,124,81,159],[92,28,93,31],[92,32,93,67],[92,68,93,75],[92,76,93,103],[84,28,85,31],[84,32,85,67],[84,68,85,75],[88,28,89,31],[90,28,91,31],[86,68,87,75],[84,124,85,159],[82,124,83,159],[94,68,95,75],[94,76,95,103],[82,32,83,67],[78,76,79,103],[76,32,77,67],[78,32,79,67],[90,68,91,75],[64,161,65,175],[29,160,31,175],[22,124,23,159],[62,10,69,27],[62,2,69,5],[22,6,93,9],[86,10,93,27],[78,18,85,27],[70,18,77,27],[70,10,85,17],[54,10,61,27],[54,2,61,5],[22,2,29,5],[80,32,81,67],[76,68,77,75],[78,28,79,31],[80,28,81,31],[78,68,79,75],[76,28,77,31],[82,28,83,31],[80,76,81,103],[86,28,87,31],[86,2,93,5],[70,2,85,5],[30,2,37,5],[30,10,37,27],[38,124,39,159],[40,124,41,159],[34,114,35,123],[28,114,29,123],[32,114,33,123],[32,124,33,159],[50,162,51,164],[46,10,53,27],[40,161,41,175],[44,161,46,172],[48,161,49,175],[32,166,34,170],[36,160,37,175],[38,161,39,175],[42,170,43,173],[30,68,31,75],[42,68,43,75],[32,68,33,75],[34,68,35,75],[38,68,39,75],[40,68,41,75],[36,68,37,75],[17,160,21,168],[26,171,27,173],[17,169,21,171],[34,124,35,159],[80,160,83,178],[84,160,87,178],[72,160,75,178],[76,160,79,178],[17,172,21,175],[52,169,54,171],[24,124,25,159],[26,124,27,159],[50,166,51,168],[50,170,51,172],[54,124,55,159],[52,124,53,159],[52,161,54,163],[52,165,54,167],[22,160,24,175],[25,166,27,170],[70,160,71,173],[55,161,56,175],[58,160,59,173],[61,161,62,175]]}
[null,null,"組機様式第8号",null,null,null,null,null,null,null,null,null,null,null,null,null,null,null,null,null,null,null,null,null,null,null,null,null,null,null,null,null,null,null,null,null,null,null,null,null,null,null,null,null,null,null,null,null,null,null,null,null,null,null,null,null,null,null,null,null,null,null,null,null,null,null,null,null,null,null,null,null,null,null,null,null,null,null,null,null,null,null,null,null,null,null,null,null,null,null,null,null,null,null,null,null,null,null,null,null,null,null,null,null,null,null,null,null,null,null,null,null,null,null,null,null,null,null,null,null,null,null,null,null,null,null,null,null,null,null,null,null,null,null,null,null,null,null,null,null,null,null,null,null,null,null,null,null,null,null,null,null,null,null,null,null,null,null,null,null,null,null,null,null,null,null,null,null,null,null,"頁"]
[]
[null,null,"住所",null,null,null,null,null,null,null,null,null,null,"〒",null,null,null,null,null,null,null,null,null,"-",null,null,null,null,null,null,null,null,null,null,null,null,null,null,null,null,null,null,null,null,null,null,null,null,null,null,null,null,null,null,null,null,null,null,null,null,null,null,null,null,null,null,null,null,null,null,null,null,null,null,null,null,null,null,null,null,null,null,null,null,null,null,null,null,null,null,null,null,null,null,null,"労働保険等",null,null,null,null,null,null,null,null,null,null,null,null,null,null,null,null,null,null,null,null,null,null,null,null,null,null,"一　括　有　期　事　業　総　括　表"]
[]
[]
[null,null,null,null,null,null,null,null,null,null,null,null,null,null,null,null,null,null,null,null,null,null,null,null,null,null,null,null,null,null,null,null,null,null,null,null,null,null,null,null,null,null,null,null,null,null,null,null,null,null,null,null,null,null,null,null,null,null,null,null,null,null,null,null,null,null,null,null,null,null,null,null,null,null,null,null,null,null,null,null,null,null,null,null,null,null,null,null,null,null,null,null,null,null,null,null,null,null,null,null,null,null,null,null,null,null,null,null,null,null,null,null,null,null,null,null,null,null,null,null,null,null,"算　定　基　礎　賃　金　等　の　報　告"]
[null,null,null,null,null,null,null,null,null,null,null,null,null,null,null,null,null,null,null,null,null,null,null,null,null,null,null,null,null,null,null,null,null,null,null,null,null,null,null,null,null,null,null,null,null,null,null,null,null,null,null,null,null,null,null,null,null,null,null,null,null,null,null,null,null,null,null,null,null,null,null,null,null,null,null,null,null,"労働保険番号"]
[]
[null,null,null,null,null,null,null,null,null,null,null,null,null,null,null,null,null,null,null,null,null,null,null,null,null,null,null,null,null,null,null,null,null,null,null,null,null,null,null,null,null,null,null,null,null,null,null,null,null,null,null,null,null,null,null,null,null,null,null,null,null,null,null,null,null,null,null,null,null,null,null,null,null,null,null,null,null,"府　県",null,null,null,null,null,null,null,null,null,"所掌",null,null,null,null,"管　轄",null,null,null,null,null,null,null,null,null,"基　幹　番　号",null,null,null,null,null,null,null,null,null,null,null,null,null,null,null,null,null,null,null,null,null,null,null,null,null,null,null,null,null,null,null,null,null,null,null,"枝　番"]
[null,null,"事業場名"]
[]
[]
[null,null,"事業主名",null,null,null,null,null,null,null,null,null,null,null,null,null,null,null,null,null,null,null,null,null,null,null,null,null,null,null,null,null,null,null,null,null,null,null,null,null,null,null,null,null,null,null,null,null,null,null,null,null,null,"殿"]
[null,null,null,null,null,null,null,null,null,null,null,null,null,null,null,null,null,null,null,null,null,null,null,null,null,null,null,null,null,null,null,null,null,null,null,null,null,null,null,null,null,null,null,null,null,null,null,null,null,null,null,null,null,null,null,null,null,null,null,null,null,null,null,null,null,null,null,null,null,null,null,null,null,null,null,null,null,"事務組合名"]
[]
[null,null,null,null,null,null,null,null,null,null,null,null,null,null,null,null,null,null,null,null,null,null,null,null,null,null,null,null,"事業場TEL",null,null,null,null,null,null,null,null,null,null,null,null,null,null,null,null,null,null,null,null,null,null,null,null,null,null,null,null,null,null,null,null,null,null,null,null,null,null,null,null,null,null,null,null,null,null,null,null,"TEL",null,null,null,null,null,null,null,null,null,null,null,null,null,null,null,null,null,null,null,null,null,null,null,null,null,null,null,null,null,null,null,null,null,null,null,null,null,null,null,null,null,null,null,null,null,null,null,null,null,null,null,null,null,null,null,null,null,null,null,null,null,null,null,null,null,null,null,null,null,null,null,null,null,null,null,null,null,null,null,null,null,null,null,null,null,null,0,null,null,null,0]
[]
[null,null,"業種",null,null,null,"事　業　の　種　類",null,null,null,null,null,null,null,null,null,null,null,null,null,null,null,null,null,null,null,null,null,"開始",null,null,null,"1.請　負　金　額",null,null,null,null,null,null,null,null,null,null,null,null,null,null,null,null,null,null,null,null,null,null,null,null,null,null,null,null,null,null,null,null,null,null,null,"労務",null,null,null,null,null,null,null,"２.賃　金　総　額",null,null,null,null,null,null,null,null,null,null,null,null,null,null,null,null,null,null,null,null,null,null,null,null,null,null,null,"労　災",null,null,null,null,null,null,null,null,null,"メリット",null,null,null,null,null,null,null,null,null,"保　険　料　等",null,null,null,null,null,null,null,null,null,null,null,null,null,null,null,null,null,null,null,null,null,null,null,null,null,null,null,null,null,null,null,null,null,null,null,"3.一括有期\n事業報告書",null,null,null,null,null,null,null,null,null,null,null,"枚添付"]
[]
[null,null,"番号",null,null,null,null,null,null,null,null,null,null,null,null,null,null,null,null,null,null,null,null,null,null,null,null,null,"時期",null,null,null,null,null,null,null,null,null,null,null,null,null,null,null,null,null,null,null,null,null,null,null,null,null,null,null,null,null,null,null,null,null,null,null,null,null,null,null,"費率",null,null,null,null,null,null,null,null,null,null,null,null,null,null,null,null,null,null,null,null,null,null,null,null,null,null,null,null,null,null,null,null,null,null,null,"保険率等",null,null,null,null,null,null,null,null,null,"料率"]
[]
[null,null,null,null,null,null,null,null,null,null,null,null,null,null,null,null,null,null,null,null,null,null,null,null,null,null,null,null,"*1",null,null,null,"円",null,null,null,null,null,null,null,null,null,null,null,null,null,null,null,null,null,null,null,null,null,null,null,null,null,null,null,null,null,null,null,null,null,null,null,null,null,null,null,null,null,null,null,"千円",null,null,null,null,null,null,null,null,null,null,null,null,null,null,null,null,null,null,null,null,null,null,null,null,null,null,null,null,null,null,null,null,null,null,null,null,null,null,null,null,null,null,null,null,null,null,null,"円"]
[{"$f":"C23","v":"31"},{"$f":"MATCH(C23,Q料率_業種一括有期・建設!B1:B10,0)","v":2},"31",null,null,null,"建　　設　　業",null,null,null,"水力発電施設\nずい道等新設事業",null,null,null,null,null,null,null,null,null,null,null,null,null,null,null,null,null,"①",null,null,null,null,null,null,null,null,null,null,null,null,null,null,null,null,null,null,null,null,null,null,null,null,null,null,null,null,null,null,null,null,null,null,null,null,null,null,null,{"$f":"IF(C23=\"\",\"\",INDIRECT(\"Q料率_業種一括有期・建設!$H$\"& B23,TRUE))","v":18},null,null,null,null,null,null,null,{"$f":"ROUNDDOWN(AG23*(BQ23/100)/1000,0)","v":0},null,null,null,null,null,null,null,null,null,null,null,null,null,null,null,null,null,null,null,null,null,null,null,null,null,null,null,{"$f":"IF(C23=\"\",\"\",INDIRECT(\"Q料率_業種一括有期・建設!$D$\"&B23,TRUE))","v":89},null,null,null,null,null,null,null,null,null,null,null,null,null,null,null,null,null,null,null,{"$f":"ROUNDDOWN(IF(DK23=\"\",BY23*DA23,BY23*DK23),0)","v":0},null,null,null,null,null,null,null,null,null,null,null,null,null,null,null,null,null,null,null,null,null,null,null,null,null,null,null,null,null,null,null,null,null,null,null,"4.常時使用労働者数"]
[]
[null,null,null,null,null,null,null,null,null,null,null,null,null,null,null,null,null,null,null,null,null,null,null,null,null,null,null,null,"②",null,null,null,null,null,null,null,null,null,null,null,null,null,null,null,null,null,null,null,null,null,null,null,null,null,null,null,null,null,null,null,null,null,null,null,null,null,null,null,{"$f":"IF(C23=\"\",\"\",INDIRECT(\"Q料率_業種一括有期・建設!$I$\"& B23,TRUE))","v":18},null,null,null,null,null,null,null,{"$f":"ROUNDDOWN(AG25*(BQ25/100)/1000,0)","v":0},null,null,null,null,null,null,null,null,null,null,null,null,null,null,null,null,null,null,null,null,null,null,null,null,null,null,null,{"$f":"IF(C23=\"\",\"\",INDIRECT(\"Q料率_業種一括有期・建設!$E$\"&B23,TRUE))","v":89},null,null,null,null,null,null,null,null,null,null,null,null,null,null,null,null,null,null,null,{"$f":"ROUNDDOWN(IF(DK25=\"\",BY25*DA25,BY25*DK25),0)","v":0}]
[]
[null,null,null,null,null,null,null,null,null,null,null,null,null,null,null,null,null,null,null,null,null,null,null,null,null,null,null,null,"③",null,null,null,null,null,null,null,null,null,null,null,null,null,null,null,null,null,null,null,null,null,null,null,null,null,null,null,null,null,null,null,null,null,null,null,null,null,null,null,{"$f":"IF(C23=\"\",\"\",INDIRECT(\"Q料率_業種一括有期・建設!$J$\"& B23,TRUE))","v":19},null,null,null,null,null,null,null,{"$f":"ROUNDDOWN(AG27*(BQ27/100)/1000,0)","v":0},null,null,null,null,null,null,null,null,null,null,null,null,null,null,null,null,null,null,null,null,null,null,null,null,null,null,null,{"$f":"IF(C23=\"\",\"\",INDIRECT(\"Q料率_業種一括有期・建設!$F$\"&B23,TRUE))","v":79},null,null,null,null,null,null,null,null,null,null,null,null,null,null,null,null,null,null,null,{"$f":"ROUNDDOWN(IF(DK27=\"\",BY27*DA27,BY27*DK27),0)","v":0},null,null,null,null,null,null,null,null,null,null,null,null,null,null,null,null,null,null,null,null,null,null,null,null,null,null,null,null,null,null,null,null,null,null,null,null,null,null,null,null,null,null,null,null,null,null,"人"]
[]
[null,null,null,null,null,null,null,null,null,null,null,null,null,null,null,null,null,null,null,null,null,null,null,null,null,null,null,null,"④",null,null,null,null,null,null,null,null,null,null,null,null,null,null,null,null,null,null,null,null,null,null,null,null,null,null,null,null,null,null,null,null,null,null,null,null,null,null,null,{"$f":"IF(C23=\"\",\"\",INDIRECT(\"Q料率_業種一括有期・建設!$K$\"& B23,TRUE))","v":19},null,null,null,null,null,null,null,{"$f":"ROUNDDOWN(AG29*(BQ29/100)/1000,0)","v":0},null,null,null,null,null,null,null,null,null,null,null,null,null,null,null,null,null,null,null,null,null,null,null,null,null,null,null,{"$f":"IF(C23=\"\",\"\",INDIRECT(\"Q料率_業種一括有期・建設!$G$\"&B23,TRUE))","v":62},null,null,null,null,null,null,null,null,null,null,null,null,null,null,null,null,null,null,null,{"$f":"ROUNDDOWN(IF(DK29=\"\",BY29*DA29,BY29*DK29),0)","v":0}]
[null,null,null,null,null,null,null,null,null,null,null,null,null,null,null,null,null,null,null,null,null,null,null,null,null,null,null,null,null,null,null,null,null,null,null,null,null,null,null,null,null,null,null,null,null,null,null,null,null,null,null,null,null,null,null,null,null,null,null,null,null,null,null,null,null,null,null,null,null,null,null,null,null,null,null,null,null,null,null,null,null,null,null,null,null,null,null,null,null,null,null,null,null,null,null,null,null,null,null,null,null,null,null,null,null,null,null,null,null,null,null,null,null,null,null,null,null,null,null,null,null,null,null,null,null,null,null,null,null,null,null,null,null,null,null,null,null,null,null,null,null,null,null,null,null,null,null,null,null,null,null,null,null,null,null,null,null,null,null,null,"5.事業の概要"]
[{"$f":"C31","v":"32"},{"$f":"MATCH(C31,Q料率_業種一括有期・建設!B1:B10,0)","v":3},"32",null,null,null,null,null,null,null,"道路新設事業",null,null,null,null,null,null,null,null,null,null,null,null,null,null,null,null,null,"①",null,null,null,null,null,null,null,null,null,null,null,null,null,null,null,null,null,null,null,null,null,null,null,null,null,null,null,null,null,null,null,null,null,null,null,null,null,null,null,{"$f":"IF(C31=\"\",\"\",INDIRECT(\"Q料率_業種一括有期・建設!$H$\"&B31,TRUE))","v":20},null,null,null,null,null,null,null,{"$f":"ROUNDDOWN(AG31*(BQ31/100)/1000,0)","v":0},null,null,null,null,null,null,null,null,null,null,null,null,null,null,null,null,null,null,null,null,null,null,null,null,null,null,null,{"$f":"IF(C31=\"\",\"\",INDIRECT(\"Q料率_業種一括有期・建設!$D$\"&B31,TRUE))","v":16},null,null,null,null,null,null,null,null,null,null,null,null,null,null,null,null,null,null,null,{"$f":"ROUNDDOWN(IF(DK31=\"\",BY31*DA31,BY31*DK31),0)","v":0}]
[]
[null,null,null,null,null,null,null,null,null,null,null,null,null,null,null,null,null,null,null,null,null,null,null,null,null,null,null,null,"②",null,null,null,null,null,null,null,null,null,null,null,null,null,null,null,null,null,null,null,null,null,null,null,null,null,null,null,null,null,null,null,null,null,null,null,null,null,null,null,{"$f":"IF(C31=\"\",\"\",INDIRECT(\"Q料率_業種一括有期・建設!$I$\"&B31,TRUE))","v":20},null,null,null,null,null,null,null,{"$f":"ROUNDDOWN(AG33*(BQ33/100)/1000,0)","v":0},null,null,null,null,null,null,null,null,null,null,null,null,null,null,null,null,null,null,null,null,null,null,null,null,null,null,null,{"$f":"IF(C31=\"\",\"\",INDIRECT(\"Q料率_業種一括有期・建設!$E$\"&B31,TRUE))","v":16},null,null,null,null,null,null,null,null,null,null,null,null,null,null,null,null,null,null,null,{"$f":"ROUNDDOWN(IF(DK33=\"\",BY33*DA33,BY33*DK33),0)","v":0}]
[]
[null,null,null,null,null,null,null,null,null,null,null,null,null,null,null,null,null,null,null,null,null,null,null,null,null,null,null,null,"③",null,null,null,null,null,null,null,null,null,null,null,null,null,null,null,null,null,null,null,null,null,null,null,null,null,null,null,null,null,null,null,null,null,null,null,null,null,null,null,{"$f":"IF(C31=\"\",\"\",INDIRECT(\"Q料率_業種一括有期・建設!$J$\"&B31,TRUE))","v":20},null,null,null,null,null,null,null,{"$f":"ROUNDDOWN(AG35*(BQ35/100)/1000,0)","v":0},null,null,null,null,null,null,null,null,null,null,null,null,null,null,null,null,null,null,null,null,null,null,null,null,null,null,null,{"$f":"IF(C31=\"\",\"\",INDIRECT(\"Q料率_業種一括有期・建設!$F$\"&B31,TRUE))","v":11},null,null,null,null,null,null,null,null,null,null,null,null,null,null,null,null,null,null,null,{"$f":"ROUNDDOWN(IF(DK35=\"\",BY35*DA35,BY35*DK35),0)","v":0}]
[]
[null,null,null,null,null,null,null,null,null,null,null,null,null,null,null,null,null,null,null,null,null,null,null,null,null,null,null,null,"④",null,null,null,null,null,null,null,null,null,null,null,null,null,null,null,null,null,null,null,null,null,null,null,null,null,null,null,null,null,null,null,null,null,null,null,null,null,null,null,{"$f":"IF(C31=\"\",\"\",INDIRECT(\"Q料率_業種一括有期・建設!$K$\"& B31,TRUE))","v":19},null,null,null,null,null,null,null,{"$f":"ROUNDDOWN(AG37*(BQ37/100)/1000,0)","v":0},null,null,null,null,null,null,null,null,null,null,null,null,null,null,null,null,null,null,null,null,null,null,null,null,null,null,null,{"$f":"IF(C31=\"\",\"\",INDIRECT(\"Q料率_業種一括有期・建設!$G$\"&B31,TRUE))","v":11},null,null,null,null,null,null,null,null,null,null,null,null,null,null,null,null,null,null,null,{"$f":"ROUNDDOWN(IF(DK37=\"\",BY37*DA37,BY37*DK37),0)","v":0},null,null,null,null,null,null,null,null,null,null,null,null,null,null,null,null,null,null,null,null,null,null,null,null,null,null,null,null,null,null,null,null,null,null,null,"6.新年度賃金見込額"]
[]
[{"$f":"C39","v":"33"},{"$f":"MATCH(C39,Q料率_業種一括有期・建設!B1:B10,0)","v":4},"33",null,null,null,null,null,null,null,"舗装工事業",null,null,null,null,null,null,null,null,null,null,null,null,null,null,null,null,null,"①",null,null,null,null,null,null,null,null,null,null,null,null,null,null,null,null,null,null,null,null,null,null,null,null,null,null,null,null,null,null,null,null,null,null,null,null,null,null,null,{"$f":"IF(C39=\"\",\"\",INDIRECT(\"Q料率_業種一括有期・建設!$H$\"& B39,TRUE))","v":18},null,null,null,null,null,null,null,{"$f":"ROUNDDOWN(AG39*(BQ39/100)/1000,0)","v":0},null,null,null,null,null,null,null,null,null,null,null,null,null,null,null,null,null,null,null,null,null,null,null,null,null,null,null,{"$f":"IF(C39=\"\",\"\",INDIRECT(\"Q料率_業種一括有期・建設!$D$\"&B39,TRUE))","v":10},null,null,null,null,null,null,null,null,null,null,null,null,null,null,null,null,null,null,null,{"$f":"ROUNDDOWN(IF(DK39=\"\",BY39*DA39,BY39*DK39),0)","v":0},null,null,null,null,null,null,null,null,null,null,null,null,null,null,null,null,null,null,null,null,null,null,null,null,null,null,null,null,null,null,null,null,null,null,null,null,{"$f":"IF(FI16=1,\"①\",\"1\") &\".前年度と同額\"","v":"1.前年度と同額"}]
[]
[null,null,null,null,null,null,null,null,null,null,null,null,null,null,null,null,null,null,null,null,null,null,null,null,null,null,null,null,"②",null,null,null,null,null,null,null,null,null,null,null,null,null,null,null,null,null,null,null,null,null,null,null,null,null,null,null,null,null,null,null,null,null,null,null,null,null,null,null,{"$f":"IF(C39=\"\",\"\",INDIRECT(\"Q料率_業種一括有期・建設!$I$\"& B39,TRUE))","v":18},null,null,null,null,null,null,null,{"$f":"ROUNDDOWN(AG41*(BQ41/100)/1000,0)","v":0},null,null,null,null,null,null,null,null,null,null,null,null,null,null,null,null,null,null,null,null,null,null,null,null,null,null,null,{"$f":"IF(C39=\"\",\"\",INDIRECT(\"Q料率_業種一括有期・建設!$E$\"&B39,TRUE))","v":10},null,null,null,null,null,null,null,null,null,null,null,null,null,null,null,null,null,null,null,{"$f":"ROUNDDOWN(IF(DK41=\"\",BY41*DA41,BY41*DK41),0)","v":0},null,null,null,null,null,null,null,null,null,null,null,null,null,null,null,null,null,null,null,null,null,null,null,null,null,null,null,null,null,null,null,null,null,null,null,null,{"$f":"IF(FI16=2,\"②\",\"2\") &\".前年度と変わる\"","v":"2.前年度と変わる"}]
[]
[null,null,null,null,null,null,null,null,null,null,null,null,null,null,null,null,null,null,null,null,null,null,null,null,null,null,null,null,"③",null,null,null,null,null,null,null,null,null,null,null,null,null,null,null,null,null,null,null,null,null,null,null,null,null,null,null,null,null,null,null,null,null,null,null,null,null,null,null,{"$f":"IF(C39=\"\",\"\",INDIRECT(\"Q料率_業種一括有期・建設!$J$\"& B39,TRUE))","v":18},null,null,null,null,null,null,null,{"$f":"ROUNDDOWN(AG43*(BQ43/100)/1000,0)","v":0},null,null,null,null,null,null,null,null,null,null,null,null,null,null,null,null,null,null,null,null,null,null,null,null,null,null,null,{"$f":"IF(C39=\"\",\"\",INDIRECT(\"Q料率_業種一括有期・建設!$F$\"&B39,TRUE))","v":9},null,null,null,null,null,null,null,null,null,null,null,null,null,null,null,null,null,null,null,{"$f":"ROUNDDOWN(IF(DK43=\"\",BY43*DA43,BY43*DK43),0)","v":0},null,null,null,null,null,null,null,null,null,null,null,null,null,null,null,null,null,null,null,null,null,null,null,null,null,null,null,null,null,null,null,null,null,null,null,null,null,null,null,null,null,null,null,null,null,"千円"]
[]
[null,null,null,null,null,null,null,null,null,null,null,null,null,null,null,null,null,null,null,null,null,null,null,null,null,null,null,null,"④",null,null,null,null,null,null,null,null,null,null,null,null,null,null,null,null,null,null,null,null,null,null,null,null,null,null,null,null,null,null,null,null,null,null,null,null,null,null,null,{"$f":"IF(C39=\"\",\"\",INDIRECT(\"Q料率_業種一括有期・建設!$K$\"& B39,TRUE))","v":17},null,null,null,null,null,null,null,{"$f":"ROUNDDOWN(AG45*(BQ45/100)/1000,0)","v":0},null,null,null,null,null,null,null,null,null,null,null,null,null,null,null,null,null,null,null,null,null,null,null,null,null,null,null,{"$f":"IF(C39=\"\",\"\",INDIRECT(\"Q料率_業種一括有期・建設!$G$\"&B39,TRUE))","v":9},null,null,null,null,null,null,null,null,null,null,null,null,null,null,null,null,null,null,null,{"$f":"ROUNDDOWN(IF(DK45=\"\",BY45*DA45,BY45*DK45),0)","v":0}]
[]
[{"$f":"C47","v":"34"},{"$f":"MATCH(C47,Q料率_業種一括有期・建設!B1:B10,0)","v":5},"34",null,null,null,null,null,null,null,"鉄道又は軌道\n新設事業",null,null,null,null,null,null,null,null,null,null,null,null,null,null,null,null,null,"①",null,null,null,null,null,null,null,null,null,null,null,null,null,null,null,null,null,null,null,null,null,null,null,null,null,null,null,null,null,null,null,null,null,null,null,null,null,null,null,{"$f":"IF(C47=\"\",\"\",INDIRECT(\"Q料率_業種一括有期・建設!$H$\"&B47,TRUE))","v":23},null,null,null,null,null,null,null,{"$f":"ROUNDDOWN(AG47*(BQ47/100)/1000,0)","v":0},null,null,null,null,null,null,null,null,null,null,null,null,null,null,null,null,null,null,null,null,null,null,null,null,null,null,null,{"$f":"IF(C47=\"\",\"\",INDIRECT(\"Q料率_業種一括有期・建設!$D$\"&B47,TRUE))","v":17},null,null,null,null,null,null,null,null,null,null,null,null,null,null,null,null,null,null,null,{"$f":"ROUNDDOWN(IF(DK47=\"\",BY47*DA47,BY47*DK47),0)","v":0}]
[]
[null,null,null,null,null,null,null,null,null,null,null,null,null,null,null,null,null,null,null,null,null,null,null,null,null,null,null,null,"②",null,null,null,null,null,null,null,null,null,null,null,null,null,null,null,null,null,null,null,null,null,null,null,null,null,null,null,null,null,null,null,null,null,null,null,null,null,null,null,{"$f":"IF(C47=\"\",\"\",INDIRECT(\"Q料率_業種一括有期・建設!$I$\"&B47,TRUE))","v":23},null,null,null,null,null,null,null,{"$f":"ROUNDDOWN(AG49*(BQ49/100)/1000,0)","v":0},null,null,null,null,null,null,null,null,null,null,null,null,null,null,null,null,null,null,null,null,null,null,null,null,null,null,null,{"$f":"IF(C47=\"\",\"\",INDIRECT(\"Q料率_業種一括有期・建設!$E$\"&B47,TRUE))","v":17},null,null,null,null,null,null,null,null,null,null,null,null,null,null,null,null,null,null,null,{"$f":"ROUNDDOWN(IF(DK49=\"\",BY49*DA49,BY49*DK49),0)","v":0},null,null,null,null,null,null,null,null,null,null,null,null,null,null,null,null,null,null,null,null,null,null,null,null,null,null,null,null,null,null,null,null,null,null,null,null,{"$f":"IF(FI16=3,\"③\",\"3\") &\".委託解除年月日\"","v":"3.委託解除年月日"}]
[]
[null,null,null,null,null,null,null,null,null,null,null,null,null,null,null,null,null,null,null,null,null,null,null,null,null,null,null,null,"③",null,null,null,null,null,null,null,null,null,null,null,null,null,null,null,null,null,null,null,null,null,null,null,null,null,null,null,null,null,null,null,null,null,null,null,null,null,null,null,{"$f":"IF(C47=\"\",\"\",INDIRECT(\"Q料率_業種一括有期・建設!$J$\"&B47,TRUE))","v":25},null,null,null,null,null,null,null,{"$f":"ROUNDDOWN(AG51*(BQ51/100)/1000,0)","v":0},null,null,null,null,null,null,null,null,null,null,null,null,null,null,null,null,null,null,null,null,null,null,null,null,null,null,null,{"$f":"IF(C47=\"\",\"\",INDIRECT(\"Q料率_業種一括有期・建設!$F$\"&B47,TRUE))","v":9.5},null,null,null,null,null,null,null,null,null,null,null,null,null,null,null,null,null,null,null,{"$f":"ROUNDDOWN(IF(DK51=\"\",BY51*DA51,BY51*DK51),0)","v":0},null,null,null,null,null,null,null,null,null,null,null,null,null,null,null,null,null,null,null,null,null,null,null,null,null,null,null,null,null,null,null,null,null,null,null,null,null,"年",null,null,null,"月",null,null,null,"日"]
[]
[null,null,null,null,null,null,null,null,null,null,null,null,null,null,null,null,null,null,null,null,null,null,null,null,null,null,null,null,"④",null,null,null,null,null,null,null,null,null,null,null,null,null,null,null,null,null,null,null,null,null,null,null,null,null,null,null,null,null,null,null,null,null,null,null,null,null,null,null,{"$f":"IF(C47=\"\",\"\",INDIRECT(\"Q料率_業種一括有期・建設!$K$\"&B47,TRUE))","v":24},null,null,null,null,null,null,null,{"$f":"ROUNDDOWN(AG53*(BQ53/100)/1000,0)","v":0},null,null,null,null,null,null,null,null,null,null,null,null,null,null,null,null,null,null,null,null,null,null,null,null,null,null,null,{"$f":"IF(C47=\"\",\"\",INDIRECT(\"Q料率_業種一括有期・建設!$G$\"&B47,TRUE))","v":9},null,null,null,null,null,null,null,null,null,null,null,null,null,null,null,null,null,null,null,{"$f":"ROUNDDOWN(IF(DK53=\"\",BY53*DA53,BY53*DK53),0)","v":0}]
[]
[{"$f":"C55","v":"35"},{"$f":"MATCH(C55,Q料率_業種一括有期・建設!B1:B10,0)","v":6},"35",null,null,null,null,null,null,null,"建築事業",null,null,null,null,null,null,null,null,null,null,null,null,null,null,null,null,null,"①",null,null,null,null,null,null,null,null,null,null,null,null,null,null,null,null,null,null,null,null,null,null,null,null,null,null,null,null,null,null,null,null,null,null,null,null,null,null,null,{"$f":"IF(C55=\"\",\"\",INDIRECT(\"Q料率_業種一括有期・建設!$H$\"& B55,TRUE))","v":21},null,null,null,null,null,null,null,{"$f":"ROUNDDOWN(AG55*(BQ55/100)/1000,0)","v":0},null,null,null,null,null,null,null,null,null,null,null,null,null,null,null,null,null,null,null,null,null,null,null,null,null,null,null,{"$f":"IF(C55=\"\",\"\",INDIRECT(\"Q料率_業種一括有期・建設!$D$\"&B55,TRUE))","v":13},null,null,null,null,null,null,null,null,null,null,null,null,null,null,null,null,null,null,null,{"$f":"ROUNDDOWN(IF(DK55=\"\",BY55*DA55,BY55*DK55),0)","v":0}]
[null,null,null,null,null,null,null,null,null,null,null,null,null,null,null,null,null,null,null,null,null,null,null,null,null,null,null,null,null,null,null,null,null,null,null,null,null,null,null,null,null,null,null,null,null,null,null,null,null,null,null,null,null,null,null,null,null,null,null,null,null,null,null,null,null,null,null,null,null,null,null,null,null,null,null,null,null,null,null,null,null,null,null,null,null,null,null,null,null,null,null,null,null,null,null,null,null,null,null,null,null,null,null,null,null,null,null,null,null,null,null,null,null,null,null,null,null,null,null,null,null,null,null,null,null,null,null,null,null,null,null,null,null,null,null,null,null,null,null,null,null,null,null,null,null,null,null,null,null,null,null,null,null,null,null,null,null,null,null,null,null,{"$f":"IF(FI16=4,\"④\",\"4\")&\".委託解除拠出金納付済\"","v":"4.委託解除拠出金納付済"}]
[null,null,null,null,null,null,null,null,null,null,null,null,null,null,null,null,null,null,null,null,null,null,null,null,null,null,null,null,"②",null,null,null,null,null,null,null,null,null,null,null,null,null,null,null,null,null,null,null,null,null,null,null,null,null,null,null,null,null,null,null,null,null,null,null,null,null,null,null,{"$f":"IF(C55=\"\",\"\",INDIRECT(\"Q料率_業種一括有期・建設!$I$\"& B55,TRUE))","v":21},null,null,null,null,null,null,null,{"$f":"ROUNDDOWN(AG57*(BQ57/100)/1000,0)","v":0},null,null,null,null,null,null,null,null,null,null,null,null,null,null,null,null,null,null,null,null,null,null,null,null,null,null,null,{"$f":"IF(C55=\"\",\"\",INDIRECT(\"Q料率_業種一括有期・建設!$E$\"&B55,TRUE))","v":13},null,null,null,null,null,null,null,null,null,null,null,null,null,null,null,null,null,null,null,{"$f":"ROUNDDOWN(IF(DK57=\"\",BY57*DA57,BY57*DK57),0)","v":0}]
[]
[null,null,null,null,null,null,null,null,null,null,null,null,null,null,null,null,null,null,null,null,null,null,null,null,null,null,null,null,"③",null,null,null,null,null,null,null,null,null,null,null,null,null,null,null,null,null,null,null,null,null,null,null,null,null,null,null,null,null,null,null,null,null,null,null,null,null,null,null,{"$f":"IF(C55=\"\",\"\",INDIRECT(\"Q料率_業種一括有期・建設!$J$\"& B55,TRUE))","v":23},null,null,null,null,null,null,null,{"$f":"ROUNDDOWN(AG59*(BQ59/100)/1000,0)","v":0},null,null,null,null,null,null,null,null,null,null,null,null,null,null,null,null,null,null,null,null,null,null,null,null,null,null,null,{"$f":"IF(C55=\"\",\"\",INDIRECT(\"Q料率_業種一括有期・建設!$F$\"&B55,TRUE))","v":11},null,null,null,null,null,null,null,null,null,null,null,null,null,null,null,null,null,null,null,{"$f":"ROUNDDOWN(IF(DK59=\"\",BY59*DA59,BY59*DK59),0)","v":0},null,null,null,null,null,null,null,null,null,null,null,null,null,null,null,null,null,null,null,null,null,null,null,null,null,null,null,null,null,null,null,null,null,null,null,"7.延納の申請"]
[]
[null,null,null,null,null,null,null,null,null,null,null,null,null,null,null,null,null,null,null,null,null,null,null,null,null,null,null,null,"④",null,null,null,null,null,null,null,null,null,null,null,null,null,null,null,null,null,null,null,null,null,null,null,null,null,null,null,null,null,null,null,null,null,null,null,null,null,null,null,{"$f":"IF(C55=\"\",\"\",INDIRECT(\"Q料率_業種一括有期・建設!$K$\"& B55,TRUE))","v":23},null,null,null,null,null,null,null,{"$f":"ROUNDDOWN(AG61*(BQ61/100)/1000,0)","v":0},null,null,null,null,null,null,null,null,null,null,null,null,null,null,null,null,null,null,null,null,null,null,null,null,null,null,null,{"$f":"IF(C55=\"\",\"\",INDIRECT(\"Q料率_業種一括有期・建設!$G$\"&B55,TRUE))","v":9.5},null,null,null,null,null,null,null,null,null,null,null,null,null,null,null,null,null,null,null,{"$f":"ROUNDDOWN(IF(DK61=\"\",BY61*DA61,BY61*DK61),0)","v":0}]
[null,null,null,null,null,null,null,null,null,null,null,null,null,null,null,null,null,null,null,null,null,null,null,null,null,null,null,null,null,null,null,null,null,null,null,null,null,null,null,null,null,null,null,null,null,null,null,null,null,null,null,null,null,null,null,null,null,null,null,null,null,null,null,null,null,null,null,null,null,null,null,null,null,null,null,null,null,null,null,null,null,null,null,null,null,null,null,null,null,null,null,null,null,null,null,null,null,null,null,null,null,null,null,null,null,null,null,null,null,null,null,null,null,null,null,null,null,null,null,null,null,null,null,null,null,null,null,null,null,null,null,null,null,null,null,null,null,null,null,null,null,null,null,null,null,null,null,null,null,null,null,null,null,null,null,null,null,null,null,null,null,{"$f":"IF(FM16=1,\"①\",\"1\") &\".一括納付\"","v":"1.一括納付"}]
[{"$f":"C63","v":"38"},{"$f":"MATCH(C63,Q料率_業種一括有期・建設!B1:B10,0)","v":7},"38",null,null,null,null,null,null,null,"既設建築物設備\n工事業",null,null,null,null,null,null,null,null,null,null,null,null,null,null,null,null,null,"①",null,null,null,null,null,null,null,null,null,null,null,null,null,null,null,null,null,null,null,null,null,null,null,null,null,null,null,null,null,null,null,null,null,null,null,null,null,null,null,{"$f":"IF(C63=\"\",\"\",INDIRECT(\"Q料率_業種一括有期・建設!$H$\"&B63,TRUE))","v":22},null,null,null,null,null,null,null,{"$f":"ROUNDDOWN(AG63*(BQ63/100)/1000,0)","v":0},null,null,null,null,null,null,null,null,null,null,null,null,null,null,null,null,null,null,null,null,null,null,null,null,null,null,null,{"$f":"IF(C63=\"\",\"\",INDIRECT(\"Q料率_業種一括有期・建設!$D$\"&B63,TRUE))","v":15},null,null,null,null,null,null,null,null,null,null,null,null,null,null,null,null,null,null,null,{"$f":"ROUNDDOWN(IF(DK63=\"\",BY63*DA63,BY63*DK63),0)","v":0}]
[]
[null,null,null,null,null,null,null,null,null,null,null,null,null,null,null,null,null,null,null,null,null,null,null,null,null,null,null,null,"②",null,null,null,null,null,null,null,null,null,null,null,null,null,null,null,null,null,null,null,null,null,null,null,null,null,null,null,null,null,null,null,null,null,null,null,null,null,null,null,{"$f":"IF(C63=\"\",\"\",INDIRECT(\"Q料率_業種一括有期・建設!$I$\"&B63,TRUE))","v":22},null,null,null,null,null,null,null,{"$f":"ROUNDDOWN(AG65*(BQ65/100)/1000,0)","v":0},null,null,null,null,null,null,null,null,null,null,null,null,null,null,null,null,null,null,null,null,null,null,null,null,null,null,null,{"$f":"IF(C63=\"\",\"\",INDIRECT(\"Q料率_業種一括有期・建設!$E$\"&B63,TRUE))","v":15},null,null,null,null,null,null,null,null,null,null,null,null,null,null,null,null,null,null,null,{"$f":"ROUNDDOWN(IF(DK65=\"\",BY65*DA65,BY65*DK65),0)","v":0},null,null,null,null,null,null,null,null,null,null,null,null,null,null,null,null,null,null,null,null,null,null,null,null,null,null,null,null,null,null,null,null,null,null,null,null,{"$f":"IF(FM16=2,\"②\",\"2\") &\".分納（３回）\"","v":"2.分納（３回）"}]
[]
[null,null,null,null,null,null,null,null,null,null,null,null,null,null,null,null,null,null,null,null,null,null,null,null,null,null,null,null,"③",null,null,null,null,null,null,null,null,null,null,null,null,null,null,null,null,null,null,null,null,null,null,null,null,null,null,null,null,null,null,null,null,null,null,null,null,null,null,null,{"$f":"IF(C63=\"\",\"\",INDIRECT(\"Q料率_業種一括有期・建設!$J$\"&B63,TRUE))","v":23},null,null,null,null,null,null,null,{"$f":"ROUNDDOWN(AG67*(BQ67/100)/1000,0)","v":0},null,null,null,null,null,null,null,null,null,null,null,null,null,null,null,null,null,null,null,null,null,null,null,null,null,null,null,{"$f":"IF(C63=\"\",\"\",INDIRECT(\"Q料率_業種一括有期・建設!$F$\"&B63,TRUE))","v":15},null,null,null,null,null,null,null,null,null,null,null,null,null,null,null,null,null,null,null,{"$f":"ROUNDDOWN(IF(DK67=\"\",BY67*DA67,BY67*DK67),0)","v":0}]
[]
[null,null,null,null,null,null,null,null,null,null,null,null,null,null,null,null,null,null,null,null,null,null,null,null,null,null,null,null,"④",null,null,null,null,null,null,null,null,null,null,null,null,null,null,null,null,null,null,null,null,null,null,null,null,null,null,null,null,null,null,null,null,null,null,null,null,null,null,null,{"$f":"IF(C63=\"\",\"\",INDIRECT(\"Q料率_業種一括有期・建設!$K$\"&B63,TRUE))","v":23},null,null,null,null,null,null,null,{"$f":"ROUNDDOWN(AG69*(BQ69/100)/1000,0)","v":0},null,null,null,null,null,null,null,null,null,null,null,null,null,null,null,null,null,null,null,null,null,null,null,null,null,null,null,{"$f":"IF(C63=\"\",\"\",INDIRECT(\"Q料率_業種一括有期・建設!$G$\"&B63,TRUE))","v":12},null,null,null,null,null,null,null,null,null,null,null,null,null,null,null,null,null,null,null,{"$f":"ROUNDDOWN(IF(DK69=\"\",BY69*DA69,BY69*DK69),0)","v":0}]
[]
["361",{"$f":"MATCH(B72,Q料率_業種一括有期・建設!C1:C10,0)","v":8},"36",null,null,null,null,null,null,null,"機械装置の組立又は据付けの事業",null,null,null,null,null,null,null,"組立又は取付に関するもの",null,null,null,null,null,null,null,null,null,"①",null,null,null,null,null,null,null,null,null,null,null,null,null,null,null,null,null,null,null,null,null,null,null,null,null,null,null,null,null,null,null,null,null,null,null,null,null,null,null,{"$f":"IF(C71=\"\",\"\",INDIRECT(\"Q料率_業種一括有期・建設!$H$\"&B71,TRUE))","v":38},null,null,null,null,null,null,null,{"$f":"ROUNDDOWN(AG71*(BQ71/100)/1000,0)","v":0},null,null,null,null,null,null,null,null,null,null,null,null,null,null,null,null,null,null,null,null,null,null,null,null,null,null,null,{"$f":"IF(C71=\"\",\"\",INDIRECT(\"Q料率_業種一括有期・建設!$D$\"&B71,TRUE))","v":7.5},null,null,null,null,null,null,null,null,null,null,null,null,null,null,null,null,null,null,null,{"$f":"ROUNDDOWN(IF(DK71=\"\",BY71*DA71,BY71*DK71),0)","v":0},null,null,null,null,null,null,null,null,null,null,null,null,null,null,null,null,null,null,null,null,null,null,null,null,null,null,null,null,null,null,null,null,null,null,null,"*1.開始時期"]
[null,"1"]
[null,null,null,null,null,null,null,null,null,null,null,null,null,null,null,null,null,null,null,null,null,null,null,null,null,null,null,null,"②",null,null,null,null,null,null,null,null,null,null,null,null,null,null,null,null,null,null,null,null,null,null,null,null,null,null,null,null,null,null,null,null,null,null,null,null,null,null,null,{"$f":"IF(C71=\"\",\"\",INDIRECT(\"Q料率_業種一括有期・建設!$I$\"&B71,TRUE))","v":38},null,null,null,null,null,null,null,{"$f":"ROUNDDOWN(AG73*(BQ73/100)/1000,0)","v":0},null,null,null,null,null,null,null,null,null,null,null,null,null,null,null,null,null,null,null,null,null,null,null,null,null,null,null,{"$f":"IF(C71=\"\",\"\",INDIRECT(\"Q料率_業種一括有期・建設!$E$\"&B71,TRUE))","v":7.5},null,null,null,null,null,null,null,null,null,null,null,null,null,null,null,null,null,null,null,{"$f":"ROUNDDOWN(IF(DK73=\"\",BY73*DA73,BY73*DK73),0)","v":0},null,null,null,null,null,null,null,null,null,null,null,null,null,null,null,null,null,null,null,null,null,null,null,null,null,null,null,null,null,null,null,null,null,null,null,{"$f":"Q料率_業種率改定履歴!C3","v":"①平成24年 4月 1日～平成25年 9月30日"}]
[]
[null,null,null,null,null,null,null,null,null,null,null,null,null,null,null,null,null,null,null,null,null,null,null,null,null,null,null,null,"③",null,null,null,null,null,null,null,null,null,null,null,null,null,null,null,null,null,null,null,null,null,null,null,null,null,null,null,null,null,null,null,null,null,null,null,null,null,null,null,{"$f":"IF(C71=\"\",\"\",INDIRECT(\"Q料率_業種一括有期・建設!$J$\"&B71,TRUE))","v":40},null,null,null,null,null,null,null,{"$f":"ROUNDDOWN(AG75*(BQ75/100)/1000,0)","v":0},null,null,null,null,null,null,null,null,null,null,null,null,null,null,null,null,null,null,null,null,null,null,null,null,null,null,null,{"$f":"IF(C71=\"\",\"\",INDIRECT(\"Q料率_業種一括有期・建設!$F$\"&B71,TRUE))","v":6.5},null,null,null,null,null,null,null,null,null,null,null,null,null,null,null,null,null,null,null,{"$f":"ROUNDDOWN(IF(DK75=\"\",BY75*DA75,BY75*DK75),0)","v":0}]
[]
[null,null,null,null,null,null,null,null,null,null,null,null,null,null,null,null,null,null,null,null,null,null,null,null,null,null,null,null,"④",null,null,null,null,null,null,null,null,null,null,null,null,null,null,null,null,null,null,null,null,null,null,null,null,null,null,null,null,null,null,null,null,null,null,null,null,null,null,null,{"$f":"IF(C71=\"\",\"\",INDIRECT(\"Q料率_業種一括有期・建設!$K$\"&B71,TRUE))","v":38},null,null,null,null,null,null,null,{"$f":"ROUNDDOWN(AG77*(BQ77/100)/1000,0)","v":0},null,null,null,null,null,null,null,null,null,null,null,null,null,null,null,null,null,null,null,null,null,null,null,null,null,null,null,{"$f":"IF(C71=\"\",\"\",INDIRECT(\"Q料率_業種一括有期・建設!$G$\"&B71,TRUE))","v":6.5},null,null,null,null,null,null,null,null,null,null,null,null,null,null,null,null,null,null,null,{"$f":"ROUNDDOWN(IF(DK77=\"\",BY77*DA77,BY77*DK77),0)","v":0},null,null,null,null,null,null,null,null,null,null,null,null,null,null,null,null,null,null,null,null,null,null,null,null,null,null,null,null,null,null,null,null,null,null,null,{"$f":"Q料率_業種率改定履歴!C4","v":"②平成25年10月 1日～平成27年 3月31日"}]
[]
["362",{"$f":"MATCH(B80,Q料率_業種一括有期・建設!C1:C10,0)","v":9},null,null,null,null,null,null,null,null,null,null,null,null,null,null,null,null,"その他のもの",null,null,null,null,null,null,null,null,null,"①",null,null,null,null,null,null,null,null,null,null,null,null,null,null,null,null,null,null,null,null,null,null,null,null,null,null,null,null,null,null,null,null,null,null,null,null,null,null,null,{"$f":"IF(C71=\"\",\"\",INDIRECT(\"Q料率_業種一括有期・建設!$H$\"&B79,TRUE))","v":21},null,null,null,null,null,null,null,{"$f":"ROUNDDOWN(AG79*(BQ79/100)/1000,0)","v":0},null,null,null,null,null,null,null,null,null,null,null,null,null,null,null,null,null,null,null,null,null,null,null,null,null,null,null,{"$f":"IF(C71=\"\",\"\",INDIRECT(\"Q料率_業種一括有期・建設!$D$\"&B79,TRUE))","v":7.5},null,null,null,null,null,null,null,null,null,null,null,null,null,null,null,null,null,null,null,{"$f":"ROUNDDOWN(IF(DK79=\"\",BY79*DA79,BY79*DK79),0)","v":0}]
[null,"2"]
[null,null,null,null,null,null,null,null,null,null,null,null,null,null,null,null,null,null,null,null,null,null,null,null,null,null,null,null,"②",null,null,null,null,null,null,null,null,null,null,null,null,null,null,null,null,null,null,null,null,null,null,null,null,null,null,null,null,null,null,null,null,null,null,null,null,null,null,null,{"$f":"IF(C71=\"\",\"\",INDIRECT(\"Q料率_業種一括有期・建設!$I$\"&B79,TRUE))","v":21},null,null,null,null,null,null,null,{"$f":"ROUNDDOWN(AG81*(BQ81/100)/1000,0)","v":0},null,null,null,null,null,null,null,null,null,null,null,null,null,null,null,null,null,null,null,null,null,null,null,null,null,null,null,{"$f":"IF(C71=\"\",\"\",INDIRECT(\"Q料率_業種一括有期・建設!$E$\"&B79,TRUE))","v":7.5},null,null,null,null,null,null,null,null,null,null,null,null,null,null,null,null,null,null,null,{"$f":"ROUNDDOWN(IF(DK81=\"\",BY81*DA81,BY81*DK81),0)","v":0},null,null,null,null,null,null,null,null,null,null,null,null,null,null,null,null,null,null,null,null,null,null,null,null,null,null,null,null,null,null,null,null,null,null,null,{"$f":"Q料率_業種率改定履歴!C5","v":"③平成27年 4月 1日～平成30年 3月31日"}]
[]
[null,null,null,null,null,null,null,null,null,null,null,null,null,null,null,null,null,null,null,null,null,null,null,null,null,null,null,null,"③",null,null,null,null,null,null,null,null,null,null,null,null,null,null,null,null,null,null,null,null,null,null,null,null,null,null,null,null,null,null,null,null,null,null,null,null,null,null,null,{"$f":"IF(C71=\"\",\"\",INDIRECT(\"Q料率_業種一括有期・建設!$J$\"&B79,TRUE))","v":22},null,null,null,null,null,null,null,{"$f":"ROUNDDOWN(AG83*(BQ83/100)/1000,0)","v":0},null,null,null,null,null,null,null,null,null,null,null,null,null,null,null,null,null,null,null,null,null,null,null,null,null,null,null,{"$f":"IF(C71=\"\",\"\",INDIRECT(\"Q料率_業種一括有期・建設!$F$\"&B79,TRUE))","v":6.5},null,null,null,null,null,null,null,null,null,null,null,null,null,null,null,null,null,null,null,{"$f":"ROUNDDOWN(IF(DK83=\"\",BY83*DA83,BY83*DK83),0)","v":0}]
[]
[null,null,null,null,null,null,null,null,null,null,null,null,null,null,null,null,null,null,null,null,null,null,null,null,null,null,null,null,"④",null,null,null,null,null,null,null,null,null,null,null,null,null,null,null,null,null,null,null,null,null,null,null,null,null,null,null,null,null,null,null,null,null,null,null,null,null,null,null,{"$f":"IF(C71=\"\",\"\",INDIRECT(\"Q料率_業種一括有期・建設!$K$\"&B79,TRUE))","v":21},null,null,null,null,null,null,null,{"$f":"ROUNDDOWN(AG85*(BQ85/100)/1000,0)","v":0},null,null,null,null,null,null,null,null,null,null,null,null,null,null,null,null,null,null,null,null,null,null,null,null,null,null,null,{"$f":"IF(C71=\"\",\"\",INDIRECT(\"Q料率_業種一括有期・建設!$G$\"&B79,TRUE))","v":6.5},null,null,null,null,null,null,null,null,null,null,null,null,null,null,null,null,null,null,null,{"$f":"ROUNDDOWN(IF(DK85=\"\",BY85*DA85,BY85*DK85),0)","v":0},null,null,null,null,null,null,null,null,null,null,null,null,null,null,null,null,null,null,null,null,null,null,null,null,null,null,null,null,null,null,null,null,null,null,null,{"$f":"Q料率_業種率改定履歴!C6","v":"④平成30年 4月 1日～"}]
[]
[{"$f":"C87","v":"37"},{"$f":"MATCH(C87,Q料率_業種一括有期・建設!B1:B10,0)","v":10},"37",null,null,null,null,null,null,null,"その他の\n建設事業",null,null,null,null,null,null,null,null,null,null,null,null,null,null,null,null,null,"①",null,null,null,null,null,null,null,null,null,null,null,null,null,null,null,null,null,null,null,null,null,null,null,null,null,null,null,null,null,null,null,null,null,null,null,null,null,null,null,{"$f":"IF(C87=\"\",\"\",INDIRECT(\"Q料率_業種一括有期・建設!$H$\"& B87,TRUE))","v":23},null,null,null,null,null,null,null,{"$f":"ROUNDDOWN(AG87*(BQ87/100)/1000,0)","v":0},null,null,null,null,null,null,null,null,null,null,null,null,null,null,null,null,null,null,null,null,null,null,null,null,null,null,null,{"$f":"IF(C87=\"\",\"\",INDIRECT(\"Q料率_業種一括有期・建設!$D$\"&B87,TRUE))","v":19},null,null,null,null,null,null,null,null,null,null,null,null,null,null,null,null,null,null,null,{"$f":"ROUNDDOWN(IF(DK87=\"\",BY87*DA87,BY87*DK87),0)","v":0}]
[]
[null,null,null,null,null,null,null,null,null,null,null,null,null,null,null,null,null,null,null,null,null,null,null,null,null,null,null,null,"②",null,null,null,null,null,null,null,null,null,null,null,null,null,null,null,null,null,null,null,null,null,null,null,null,null,null,null,null,null,null,null,null,null,null,null,null,null,null,null,{"$f":"IF(C87=\"\",\"\",INDIRECT(\"Q料率_業種一括有期・建設!$I$\"& B87,TRUE))","v":23},null,null,null,null,null,null,null,{"$f":"ROUNDDOWN(AG89*(BQ89/100)/1000,0)","v":0},null,null,null,null,null,null,null,null,null,null,null,null,null,null,null,null,null,null,null,null,null,null,null,null,null,null,null,{"$f":"IF(C87=\"\",\"\",INDIRECT(\"Q料率_業種一括有期・建設!$E$\"&B87,TRUE))","v":19},null,null,null,null,null,null,null,null,null,null,null,null,null,null,null,null,null,null,null,{"$f":"ROUNDDOWN(IF(DK89=\"\",BY89*DA89,BY89*DK89),0)","v":0}]
[]
[null,null,null,null,null,null,null,null,null,null,null,null,null,null,null,null,null,null,null,null,null,null,null,null,null,null,null,null,"③",null,null,null,null,null,null,null,null,null,null,null,null,null,null,null,null,null,null,null,null,null,null,null,null,null,null,null,null,null,null,null,null,null,null,null,null,null,null,null,{"$f":"IF(C87=\"\",\"\",INDIRECT(\"Q料率_業種一括有期・建設!$J$\"& B87,TRUE))","v":24},null,null,null,null,null,null,null,{"$f":"ROUNDDOWN(AG91*(BQ91/100)/1000,0)","v":0},null,null,null,null,null,null,null,null,null,null,null,null,null,null,null,null,null,null,null,null,null,null,null,null,null,null,null,{"$f":"IF(C87=\"\",\"\",INDIRECT(\"Q料率_業種一括有期・建設!$F$\"&B87,TRUE))","v":17},null,null,null,null,null,null,null,null,null,null,null,null,null,null,null,null,null,null,null,{"$f":"ROUNDDOWN(IF(DK91=\"\",BY91*DA91,BY91*DK91),0)","v":0},null,null,null,null,null,null,null,null,null,null,null,null,null,null,null,null,null,null,null,null,null,null,null,null,null,null,null,null,null,null,null,null,null,null,null,"*2.特別加入者・保険料"]
[]
[null,null,null,null,null,null,null,null,null,null,null,null,null,null,null,null,null,null,null,null,null,null,null,null,null,null,null,null,"④",null,null,null,null,null,null,null,null,null,null,null,null,null,null,null,null,null,null,null,null,null,null,null,null,null,null,null,null,null,null,null,null,null,null,null,null,null,null,null,{"$f":"IF(C87=\"\",\"\",INDIRECT(\"Q料率_業種一括有期・建設!$K$\"& B87,TRUE))","v":24},null,null,null,null,null,null,null,{"$f":"ROUNDDOWN(AG93*(BQ93/100)/1000,0)","v":0},null,null,null,null,null,null,null,null,null,null,null,null,null,null,null,null,null,null,null,null,null,null,null,null,null,null,null,{"$f":"IF(C87=\"\",\"\",INDIRECT(\"Q料率_業種一括有期・建設!$G$\"&B87,TRUE))","v":15},null,null,null,null,null,null,null,null,null,null,null,null,null,null,null,null,null,null,null,{"$f":"ROUNDDOWN(IF(DK93=\"\",BY93*DA93,BY93*DK93),0)","v":0},null,null,null,null,null,null,null,null,null,null,null,null,null,null,null,null,null,null,null,null,null,null,null,null,null,null,null,null,null,null,null,null,null,null,null,"　　算定基礎額の計"]
[]
[null,null,"計",null,null,null,null,null,null,null,null,null,null,null,null,null,null,null,null,null,null,null,null,null,null,null,null,null,null,null,null,null,{"$f":"SUM(AG23:BP94)","v":0},null,null,null,null,null,null,null,null,null,null,null,null,null,null,null,null,null,null,null,null,null,null,null,null,null,null,null,null,null,null,null,null,null,null,null,null,null,null,null,null,null,null,null,{"$f":"SUM(BY23:CZ94)","v":0},null,null,null,null,null,null,null,null,null,null,null,null,null,null,null,null,null,null,null,null,null,null,null,null,null,null,null,null,null,null,null,null,null,null,null,null,null,null,null,null,null,null,null,null,null,null,null,{"$f":"SUM(DU23:FD94)","v":0}]
[]
[null,null,"特別加入者",null,null,null,null,null,null,null,null,null,null,null,null,null,null,null,null,null,null,null,null,null,null,null,null,null,null,null,null,null,null,null,null,null,null,null,null,null,null,null,null,null,null,null,null,null,null,null,null,null,null,null,null,null,null,null,null,null,"人分",null,null,null,null,null,null,null,null,null,null,null,null,null,null,null,"*2",null,null,null,null,null,null,null,null,null,null,null,null,null,null,null,null,null,null,null,null,null,null,null,null,null,null,null,null,null,null,null,null,null,null,null,null,null,null,null,null,null,null,null,null,null,null,null,{"$f":"IF(CC97=\"\",\"\",ROUNDDOWN(IF(DK97=\"\",CC97*DA97,CC97*DK97),0))","v":""}]
[null,null,null,null,null,null,null,null,null,null,null,null,null,null,null,null,null,null,null,null,null,null,null,null,null,null,null,null,null,null,null,null,null,null,null,null,null,null,null,null,null,null,null,null,null,null,null,null,null,null,null,null,null,null,null,null,null,null,null,null,null,null,null,null,null,null,null,null,null,null,null,null,null,null,null,null,null,null,null,null,null,null,null,null,null,null,null,null,null,null,null,null,null,null,null,null,null,null,null,null,null,null,null,null,null,null,null,null,null,null,null,null,null,null,null,null,null,null,null,null,null,null,null,null,null,null,null,null,null,null,null,null,null,null,null,null,null,null,null,null,null,null,null,null,null,null,null,null,null,null,null,null,null,null,null,null,null,null,null,null,null,"申告済概算保険料"]
[null,null,null,null,null,null,null,null,null,null,null,null,null,null,null,null,null,null,null,null,null,null,null,null,null,null,null,null,null,null,null,null,null,null,null,null,null,null,null,null,null,null,null,null,null,null,null,null,null,null,null,null,null,null,null,null,null,null,null,null,null,null,null,null,null,null,null,null,null,null,null,null,null,null,null,null,null,null,null,null,null,null,null,null,null,null,null,null,null,null,null,null,null,null,null,null,null,null,null,null,null,null,null,null,null,null,null,null,null,null,null,null,null,null,null,null,null,null,null,null,null,null,null,null,{"$f":"ROUNDDOWN(IF(DK99=\"\",CC99*DA99,CC99*DK99),0)","v":0}]
[null,null,null,null,null,null,null,null,null,null,null,null,null,null,null,null,null,null,null,null,null,null,null,null,null,null,null,null,null,null,null,null,null,null,null,null,null,null,null,null,null,null,null,null,null,null,null,null,null,null,null,null,null,null,null,null,null,null,null,null,null,null,null,null,null,null,null,null,null,null,null,null,null,null,null,null,null,null,null,null,null,null,null,null,null,null,null,null,null,null,null,null,null,null,null,null,null,null,null,null,null,null,null,null,null,null,null,null,null,null,null,null,null,null,null,null,null,null,null,null,null,null,null,null,null,null,null,null,null,null,null,null,null,null,null,null,null,null,null,null,null,null,null,null,null,null,null,null,null,null,null,null,null,null,null,null,null,null,null,null,null,null,null,null,null,null,null,null,null,null,null,null,null,null,"円"]
[null,null,"保険料計",null,null,null,null,null,null,null,null,null,null,null,null,null,null,null,null,null,null,null,null,null,null,null,null,null,null,null,null,null,null,null,null,null,null,null,null,null,null,null,null,null,null,null,null,null,null,null,null,null,null,null,null,null,null,null,null,null,null,null,null,null,null,null,null,null,null,null,null,null,null,null,null,null,null,null,null,null,null,null,null,null,null,null,null,null,null,null,null,null,null,null,null,null,null,null,null,null,null,null,null,null,null,null,null,null,null,null,null,null,null,null,null,null,null,null,null,null,null,null,null,null,{"$f":"SUM(DU95:FD98)","v":0}]
[]
[]
[]
[null,null,"一般拠出金",null,null,null,null,null,null,null,null,null,null,null,null,null,null,null,null,null,null,null,null,null,null,null,null,null,null,null,null,null,null,null,null,null,null,null,null,null,null,null,null,null,null,null,null,null,null,null,null,null,null,null,null,null,null,null,null,null,null,null,null,null,null,null,null,null,null,null,null,null,null,null,null,null,null,null,null,null,null,null,null,null,null,null,null,null,null,null,null,null,null,null,null,null,null,null,null,null,null,null,null,null,{"$f":"Q料率_拠出金!B2","v":1.9999999552965164E-2},null,null,null,null,null,null,null,null,null,null,null,null,null,null,null,null,null,null,null,{"$f":"ROUNDDOWN(BY105*DA105,0)","v":0}]
[]
[]
["NO.",null,"特別加入者の氏名",null,null,null,null,null,null,null,null,null,null,null,null,null,null,null,null,null,null,"承認された\n基礎日額",null,null,null,null,null,null,null,null,"適用月数",null,null,null,null,null,null,null,null,"希望する\n基礎日額",null,null,null,null,null,null,null,null,null,null,"NO.",null,null,null,"特別加入者の氏名",null,null,null,null,null,null,null,null,null,null,null,null,null,null,null,null,null,null,null,null,null,null,null,null,null,null,"承認された\n基礎日額",null,null,null,null,null,null,null,null,null,null,null,"適用月数",null,null,null,null,null,null,null,null,null,"希望する\n基礎日額",null,null,null,null,null,null,null,null,null,null,null,null,null,null,"NO.",null,null,null,null,null,"特別加入者の氏名",null,null,null,null,null,null,null,null,null,null,null,null,null,null,null,null,null,null,null,null,null,null,null,null,null,"承認された\n基礎日額",null,null,null,null,null,null,null,null,null,null,"適用月数",null,null,null,null,null,"希望する\n基礎日額"]
[]
[null,null,null,null,null,null,null,null,null,null,null,null,null,null,null,null,null,null,null,null,null,null,null,null,null,null,null,null,null,null,"確定",null,null,null,"概算",null,null,null,null,null,null,null,null,null,null,null,null,null,null,null,null,null,null,null,null,null,null,null,null,null,null,null,null,null,null,null,null,null,null,null,null,null,null,null,null,null,null,null,null,null,null,null,null,null,null,null,null,null,null,null,null,null,null,"確定",null,null,null,null,"概算",null,null,null,null,null,null,null,null,null,null,null,null,null,null,null,null,null,null,null,null,null,null,null,null,null,null,null,null,null,null,null,null,null,null,null,null,null,null,null,null,null,null,null,null,null,null,null,null,null,null,null,null,null,null,null,null,null,null,null,null,null,null,"確定",null,null,"概算"]
[]
[null,null,null,null,null,null,null,null,null,null,null,null,null,null,null,null,null,null,null,null,null,"円",null,null,null,null,null,null,null,null,null,null,null,null,null,null,null,null,null,null,null,null,null,null,null,"円",null,null,null,null,null,null,null,null,null,null,null,null,null,null,null,null,null,null,null,null,null,null,null,null,null,null,null,null,null,null,null,null,null,null,null,"円",null,null,null,null,null,null,null,null,null,null,null,null,null,null,null,null,null,null,null,null,null,null,null,null,null,null,null,null,null,null,"円",null,null,null,null,null,null,null,null,null,null,null,null,null,null,null,null,null,null,null,null,null,null,null,null,null,null,null,null,null,null,null,null,null,null,null,null,null,"円",null,null,null,null,null,null,null,null,null,null,null,null,null,null,null,null,null,null,null,null,"円"]
[null,null,null,null,null,null,null,null,null,null,null,null,null,null,null,null,null,null,null,null,null,null,null,null,null,null,null,null,null,null,null,null,null,null,null,null,null,null,null,null,null,null,null,null,null,"00",null,null,null,null,null,null,null,null,null,null,null,null,null,null,null,null,null,null,null,null,null,null,null,null,null,null,null,null,null,null,null,null,null,null,null,null,null,null,null,null,null,null,null,null,null,null,null,null,null,null,null,null,null,null,null,null,null,null,null,null,null,null,null,null,null,null,"00",null,null,null,null,null,null,null,null,null,null,null,null,null,null,null,null,null,null,null,null,null,null,null,null,null,null,null,null,null,null,null,null,null,null,null,null,null,null,null,null,null,null,null,null,null,null,null,null,null,null,null,null,null,null,null,null,null,null,"00"]
[]
[null,null,null,null,null,null,null,null,null,null,null,null,null,null,null,null,null,null,null,null,null,"円",null,null,null,null,null,null,null,null,null,null,null,null,null,null,null,null,null,null,null,null,null,null,null,"円",null,null,null,null,null,null,null,null,null,null,null,null,null,null,null,null,null,null,null,null,null,null,null,null,null,null,null,null,null,null,null,null,null,null,null,"円",null,null,null,null,null,null,null,null,null,null,null,null,null,null,null,null,null,null,null,null,null,null,null,null,null,null,null,null,null,null,"円",null,null,null,null,null,null,null,null,null,null,null,null,null,null,null,null,null,null,null,null,null,null,null,null,null,null,null,null,null,null,null,null,null,null,null,null,null,"円",null,null,null,null,null,null,null,null,null,null,null,null,null,null,null,null,null,null,null,null,"円"]
[null,null,null,null,null,null,null,null,null,null,null,null,null,null,null,null,null,null,null,null,null,null,null,null,null,null,null,null,null,null,null,null,null,null,null,null,null,null,null,null,null,null,null,null,null,"00",null,null,null,null,null,null,null,null,null,null,null,null,null,null,null,null,null,null,null,null,null,null,null,null,null,null,null,null,null,null,null,null,null,null,null,null,null,null,null,null,null,null,null,null,null,null,null,null,null,null,null,null,null,null,null,null,null,null,null,null,null,null,null,null,null,null,"00",null,null,null,null,null,null,null,null,null,null,null,null,null,null,null,null,null,null,null,null,null,null,null,null,null,null,null,null,null,null,null,null,null,null,null,null,null,null,null,null,null,null,null,null,null,null,null,null,null,null,null,null,null,null,null,null,null,null,"00"]
[]
[null,null,null,null,null,null,null,null,null,null,null,null,null,null,null,null,null,null,null,null,null,"円",null,null,null,null,null,null,null,null,null,null,null,null,null,null,null,null,null,null,null,null,null,null,null,"円",null,null,null,null,null,null,null,null,null,null,null,null,null,null,null,null,null,null,null,null,null,null,null,null,null,null,null,null,null,null,null,null,null,null,null,"円",null,null,null,null,null,null,null,null,null,null,null,null,null,null,null,null,null,null,null,null,null,null,null,null,null,null,null,null,null,null,"円",null,null,null,null,null,null,null,null,null,null,null,null,null,null,null,null,null,null,null,null,null,null,null,null,null,null,null,null,null,null,null,null,null,null,null,null,null,"円",null,null,null,null,null,null,null,null,null,null,null,null,null,null,null,null,null,null,null,null,"円"]
[null,null,null,null,null,null,null,null,null,null,null,null,null,null,null,null,null,null,null,null,null,null,null,null,null,null,null,null,null,null,null,null,null,null,null,null,null,null,null,null,null,null,null,null,null,"00",null,null,null,null,null,null,null,null,null,null,null,null,null,null,null,null,null,null,null,null,null,null,null,null,null,null,null,null,null,null,null,null,null,null,null,null,null,null,null,null,null,null,null,null,null,null,null,null,null,null,null,null,null,null,null,null,null,null,null,null,null,null,null,null,null,null,"00",null,null,null,null,null,null,null,null,null,null,null,null,null,null,null,null,null,null,null,null,null,null,null,null,null,null,null,null,null,null,null,null,null,null,null,null,null,null,null,null,null,null,null,null,null,null,null,null,null,null,null,null,null,null,null,null,null,null,"00"]
[]
[null,null,null,null,null,null,null,null,null,null,null,null,null,null,null,null,null,null,null,null,null,"円",null,null,null,null,null,null,null,null,null,null,null,null,null,null,null,null,null,null,null,null,null,null,null,"円",null,null,null,null,null,null,null,null,null,null,null,null,null,null,null,null,null,null,null,null,null,null,null,null,null,null,null,null,null,null,null,null,null,null,null,"円",null,null,null,null,null,null,null,null,null,null,null,null,null,null,null,null,null,null,null,null,null,null,null,null,null,null,null,null,null,null,"円",null,null,null,null,null,null,null,null,null,null,null,null,null,null,null,null,null,null,null,null,null,null,null,null,null,null,null,null,null,null,null,null,null,null,null,null,null,"円",null,null,null,null,null,null,null,null,null,null,null,null,null,null,null,null,null,null,null,null,"円"]
[null,null,null,null,null,null,null,null,null,null,null,null,null,null,null,null,null,null,null,null,null,null,null,null,null,null,null,null,null,null,null,null,null,null,null,null,null,null,null,null,null,null,null,null,null,"00",null,null,null,null,null,null,null,null,null,null,null,null,null,null,null,null,null,null,null,null,null,null,null,null,null,null,null,null,null,null,null,null,null,null,null,null,null,null,null,null,null,null,null,null,null,null,null,null,null,null,null,null,null,null,null,null,null,null,null,null,null,null,null,null,null,null,"00",null,null,null,null,null,null,null,null,null,null,null,null,null,null,null,null,null,null,null,null,null,null,null,null,null,null,null,null,null,null,null,null,null,null,null,null,null,null,null,null,null,null,null,null,null,null,null,null,null,null,null,null,null,null,null,null,null,null,"00"]
[]
[]
["別途一括有期事業報告書の明細及び算定基礎賃金等を\n上記のとおり総括して報告します。"]
[]
[null,null,null,null,null,null,null,null,null,null,null,null,null,null,null,null,null,null,null,null,null,null,null,null,null,null,null,null,null,null,null,null,null,null,null,null,null,null,null,null,null,null,null,null,null,null,null,null,null,null,null,null,null,null,null,null,null,null,null,null,null,null,null,null,null,null,null,null,null,null,null,null,null,null,null,null,null,null,null,null,null,null,null,null,null,null,null,null,null,null,null,null,null,null,null,null,null,null,null,null,null,null,null,null,null,null,"1期",null,null,null,null,null,null,null,null,null,null,null,null,null,null,null,null,null,null,null,null,null,null,null,null,null,null,null,null,null,null,"円",null,null,null,null,null,null,null,null,null,null,null,null,null,null,null,null,null,null,null,"円",null,null,null,null,null,null,null,null,null,null,null,"円"]
[]
[null,null,null,null,null,null,null,null,null,null,null,null,null,null,null,null,null,null,null,null,null,null,null,null,null,null,null,null,null,null,null,null,null,null,null,null,null,null,null,null,null,null,null,null,null,null,null,null,null,null,null,null,null,null,null,null,null,null,null,null,null,null,null,null,null,null,null,null,null,null,null,null,null,null,null,null,null,null,null,null,null,null,null,null,null,null,null,null,null,null,null,null,null,null,null,null,null,null,null,null,null,null,null,null,null,null,"2期",null,null,null,null,null,null,null,null,null,null,null,null,null,null,null,null,null,null,null,null,null,null,null,null,null,null,null,null,null,null,"円",null,null,null,null,null,null,null,null,null,null,null,null,null,null,null,null,null,null,null,"円",null,null,null,null,null,null,null,null,null,null,null,"円"]
[null,null,"令和",null,null,null,null,null,null,null,null,null,"年",null,null,null,null,null,null,null,"月",null,null,null,null,null,null,null,"日"]
[null,null,null,null,null,null,null,null,null,null,null,null,null,null,null,null,null,null,null,null,null,null,null,null,null,null,null,null,null,null,null,null,null,null,null,null,null,null,null,null,null,null,null,null,null,null,null,null,null,null,null,null,null,null,null,null,null,null,null,null,null,null,null,null,null,null,null,null,null,null,null,null,null,null,null,null,null,null,null,null,null,null,null,null,null,null,null,null,null,null,null,null,null,null,null,null,null,null,null,null,null,null,null,null,null,null,"3期",null,null,null,null,null,null,null,null,null,null,null,null,null,null,null,null,null,null,null,null,null,null,null,null,null,null,null,null,null,null,"円",null,null,null,null,null,null,null,null,null,null,null,null,null,null,null,null,null,null,null,"円",null,null,null,null,null,null,null,null,null,null,null,"円"]
[null,null,null,null,null,null,null,null,null,null,null,null,null,null,null,null,null,null,null,null,null,null,null,null,null,null,null,null,null,null,null,"事業主氏名"]
[]
[null,null,null,null,null,null,null,null,null,null,null,null,null,null,null,null,null,null,null,null,null,null,null,null,null,null,null,null,null,null,null,null,null,null,null,null,null,null,null,null,null,null,null,null,null,null,null,null,null,null,null,null,null,null,null,null,null,null,null,null,null,null,null,null,null,null,null,null,null,null,null,null,null,null,null,null,null,null,null,null,null,null,null,null,null,null,null,null,null,null,null,null,null,null,null,null,null,null,null,null,null,null,null,null,null,null,null,null,null,null,null,null,null,null,null,null,null,null,null,"作成者氏名"]
[]
[null,null,null,null,null,null,null,null,null,null,"労働局労働保険特別会計歳入徴収官 殿"]

{"sheet":"Q料率_業種一括有期・建設","index":2,"n_rows":10,"n_cols":13,"rows_kept":10,"cut":false,"hidden":false,"merged":[]}
["適用年度","業種分類","区分","労災保険率Ｃ","労災保険率Ｂ","労災保険率Ａ","労災保険率S","労務費率C","労務費率B","労務費率A","労務費率S","事業種類コード","賃金報告IDX"]
[2018,"31","0",89,89,79,62,18,18,19,19,"30",4]
[2018,"32","0",16,16,11,11,20,20,20,19,"30",5]
[2018,"33","0",10,10,9,9,18,18,18,17,"30",6]
[2018,"34","0",17,17,9.5,9,23,23,25,24,"30",7]
[2018,"35","0",13,13,11,9.5,21,21,23,23,"30",8]
[2018,"38","0",15,15,15,12,22,22,23,23,"30",9]
[2018,"36","1",7.5,7.5,6.5,6.5,38,38,40,38,"30",10]
[2018,"36","2",7.5,7.5,6.5,6.5,21,21,22,21,"30",11]
[2018,"37","0",19,19,17,15,23,23,24,24,"30",12]

{"sheet":"Q料率_業種率改定履歴","index":3,"n_rows":105,"n_cols":77,"rows_kept":105,"cut":false,"hidden":false,"merged":[]}
["適用年度","世代区分","率改正日付表示","str非業務災害率","率適用開始日付"]
[2018,"D","×平成21年 4月 1日～平成24年 3月31日","0.8",20090401]
[2018,"C","①平成24年 4月 1日～平成25年 9月30日","0.6",20120401]
[2018,"B","②平成25年10月 1日～平成27年 3月31日","0.6",20131001]
[2018,"A","③平成27年 4月 1日～平成30年 3月31日","0.6",20150401]
[2018,"S","④平成30年 4月 1日～","0.6",20180401]
[]
[]
[]
[]
[]
[]
[]
[]
[]
[]
[]
[]
[]
[]
[]
[]
[]
[]
[]
[]
[]
[]
[]
[]
[]
[]
[]
[]
[]
[]
[]
[]
[]
[]
[]
[]
[]
[]
[]
[]
[]
[]
[]
[]
[]
[]
[]
[]
[]
[]
[]
[]
[]
[]
[]
[]
[]
[]
[]
[]
[]
[]
[]
[]
[]
[]
[]
[]
[]
[]
[]
[]
[]
[]
[]
[]
[]
[]
[]
[]
[]
[]
[]
[]
[]
[]
[]
[]
[]
[]
[]
[]
[]
[]
[]
[]
[]
[]
[null,null,null,null,null,null,null,null,null,null,null,null,null,null,null,null,null,null,null,null,null,null,null,null,null,null,null,null,null,null,null,null,null,null,null,null,null,null,null,null,null,null,null,null,null,null,null,null,null,null,null,null,null,null,null,null,null,null,null,null,null,null,null,null,null,null,null,null,null,null,null,null,null,null,null,null,{"$f":"SUM(BY29,BY37,BY45,BY53,BY61,BY69,BY77,BY85,BY93)","v":0}]

{"sheet":"Q料率_拠出金","index":4,"n_rows":2,"n_cols":2,"rows_kept":2,"cut":false,"hidden":false,"merged":[]}
["適用年度","確定アスベスト料率有期"]
[2018,1.9999999552965164E-2]